Department,Entity,Posted Date,Internal Voucher Number, Invoice Line Amount GBP ,Supplier Name,Account Code
FCO,FCO,25/11/2020,10979492,"18,679,697.92",HOME OFFICE,UKBA Visa Income Creditor Control
FCO,FCO,03/11/2020,10950436,"12,500,000.00",THE ASSOCIATION OF COMMONWEALTH UNIVERSITIES,Programme Spend (Oracle Projects Control Account)
FCO,FCO,12/11/2020,10963299,"10,795,147.65",HMRC HM REVENUE AND CUSTOMS,Multiple Accounts
FCO,FCO,03/11/2020,10950463,"10,411,998.50",FCDO SERVICES,IT Support
FCO,FCO,27/11/2020,10982193,"8,688,090.71",NATO INTERNATIONAL STAFF,Programme Spend (Oracle Projects Control Account)
FCO,FCO,11/11/2020,10961247,"8,148,412.64",CABINET OFFICE,Multiple Accounts
FCO,FCO,24/11/2020,10978086,"7,524,549.00",BBC BRITISH BROADCASTING CORPORATION,Programme Spend (Oracle Projects Control Account)
FCO,FCO,20/11/2020,10973336,"4,191,402.79",GRUNLEY CONSTRUCTION CO INC,Additions-Assets Under Construction (Oracle PA Control Account)
FCO,FCO,03/11/2020,10950570,"3,160,627.50",CABINET OFFICE,End User Software and Hardware
FCO,FCO,10/11/2020,10959646,"2,973,000.00",ISS FACILITY SERVICES LTD FCO OP - POE,FMCU POE Trust Account Debtor
FCO,FCO,02/11/2020,10949192,"2,897,990.28",FCDO POSTS,Funding Overseas Posts
FCO,FCO,01/11/2020,10972047,"2,116,532.93",THE ROYAL BANK OF SCOTLAND,GPC Clearing Account
FCO,FCO,02/11/2020,10949186,"1,921,961.80",FCDO POSTS,Funding Overseas Posts
FCO,FCO,16/11/2020,10966203,"1,797,420.24",GW CONSULTING UK LTD,UK Guarding Contracts Overseas
FCO,FCO,20/11/2020,10973139,"1,581,007.96",ISS FACILITY SERVICES LTD FCO OP - POE,Multiple Accounts
FCO,FCO,02/11/2020,10949099,"1,570,209.46",FCDO POSTS,Funding Overseas Posts
FCO,FCO,02/11/2020,10949054,"1,521,138.46",PRICEWATERHOUSECOOPERS LLP,Programme Spend (Oracle Projects Control Account)
FCO,FCO,02/11/2020,10949203,"1,377,575.60",FCDO POSTS,Funding Overseas Posts
FCO,FCO,12/11/2020,10962915,"1,374,709.08",FCDO POSTS,Funding Overseas Posts
FCO,FCO,26/11/2020,10980738,"1,361,354.00",Mckinsey Development Partners Limited,Programme Spend (Oracle Projects Control Account)
FCO,FCO,06/11/2020,10955204,"1,155,828.89",SAS INSTEX,Programme Spend (Oracle Projects Control Account)
FCO,FCO,10/11/2020,10959636,"1,103,814.91",GW CONSULTING UK LTD,UK Mobile Guarding Contract overseas
FCO,FCO,11/11/2020,10961277,"1,101,515.13",UNITED NATIONS,Programme Spend (Oracle Projects Control Account)
FCO,FCO,24/11/2020,10978280,"1,028,476.36",OAKTHORN MAXIMUM SECURITY VILLAGE,Rental Payments - residential
FCO,FCO,03/11/2020,10950225,"1,022,591.09",MOTT MACDONALD LTD,Programme Spend (Oracle Projects Control Account)
FCO,FCO,02/11/2020,10949214,"828,344.94",FCDO POSTS,Funding Overseas Posts
FCO,FCO,25/11/2020,10979476,"800,000.00",UNITED NATIONS,Programme Spend (Oracle Projects Control Account)
FCO,FCO,02/11/2020,10949087,"777,696.66",FCDO POSTS,Funding Overseas Posts
FCO,FCO,18/11/2020,10969819,"759,911.00",UNITED NATIONS,Programme Spend (Oracle Projects Control Account)
FCO,FCO,01/11/2020,10982629,"749,557.09",THE ROYAL BANK OF SCOTLAND,Travel Package Advance Overseas Posting (Credit Card Payments Only)
FCO,FCO,02/11/2020,10949097,"744,763.38",FCDO POSTS,Funding Overseas Posts
FCO,FCO,02/11/2020,10948979,"743,668.07",PARK DEVELOPMENTS LTD,Additions-Assets Under Construction (Oracle PA Control Account)
FCO,FCO,19/11/2020,10971911,"741,457.09",COMPUTACENTER UK LTD,IT Management and Change
FCO,FCO,13/11/2020,10964518,"733,230.69",UNICEF GLOBAL SHARED SERVICE CENTRE,Programme Spend (Oracle Projects Control Account)
FCO,FCO,02/11/2020,10949183,"733,046.92",FCDO POSTS,Funding Overseas Posts
FCO,FCO,18/11/2020,10969785,"705,851.22",GROH UND RANDEL STEUERBERATER,Multiple Accounts
FCO,FCO,04/11/2020,10952009,"682,685.00",PRICEWATERHOUSECOOPERS LLP,Programme Spend (Oracle Projects Control Account)
FCO,FCO,02/11/2020,10949181,"668,266.77",FCDO POSTS,Funding Overseas Posts
FCO,FCO,13/11/2020,10964531,"654,623.00",WORLD HEALTH ORGANISATION,Programme Spend (Oracle Projects Control Account)
FCO,FCO,09/11/2020,10957347,"650,079.52",BURNHAM GLOBAL LTD,Programme Spend (Oracle Projects Control Account)
FCO,FCO,02/11/2020,10949159,"618,023.00",WESTMINSTER FOUNDATION FOR DEMOCRACY,Programme Spend (Oracle Projects Control Account)
FCO,FCO,17/11/2020,10967870,"600,206.31",ORGANIZATION FOR SECURITY AND CO-OPERATION IN EUROPE,Programme Spend (Oracle Projects Control Account)
FCO,FCO,02/11/2020,10949108,"597,786.66",FCDO POSTS,Funding Overseas Posts
FCO,FCO,13/11/2020,10965132,"593,045.15",ARTEOS GP LIMITED AND CO KG,Multiple Accounts
FCO,FCO,02/11/2020,10949145,"578,818.85",FCDO POSTS,Funding Overseas Posts
FCO,FCO,30/11/2020,10984096,"534,568.89",DAI GLOBAL UK LTD,Programme Spend (Oracle Projects Control Account)
FCO,FCO,02/11/2020,10949242,"514,000.00",FCDO POSTS,Funding Overseas Posts
FCO,FCO,02/11/2020,10949109,"500,387.90",FCDO POSTS,Funding Overseas Posts
FCO,FCO,02/11/2020,10949256,"500,000.00",NERC NATURAL ENVIRONMENT RESEARCH COUNCIL,Programme Spend (Oracle Projects Control Account)
FCO,FCO,06/11/2020,10954679,"500,000.00",THE WORLD BANK,Programme Spend (Oracle Projects Control Account)
FCO,FCO,02/11/2020,10949178,"495,946.02",FCDO POSTS,Funding Overseas Posts
FCO,FCO,12/11/2020,10962799,"494,266.84",BEIS DEPARTMENT FOR BUSINESS ENERGY AND INDUSTRIAL STRATEGY,Programme Spend (Oracle Projects Control Account)
FCO,FCO,20/11/2020,10973038,"492,421.98",DIPLOMATIC SERVICE BUREAU,Multiple Accounts
FCO,FCO,11/11/2020,10961258,"471,455.00",ALLEN VANGUARD LTD,Additions-Assets Under Construction (Oracle PA Control Account)
FCO,FCO,01/11/2020,10972035,"453,947.58",THE ROYAL BANK OF SCOTLAND,Corporate Credit Card Clearing Account
FCO,FCO,25/11/2020,10979344,"446,348.00",WESTMINSTER CITY COUNCIL,Rates Taxes Non-Residential
FCO,FCO,02/11/2020,10949194,"437,719.70",FCDO POSTS,Funding Overseas Posts
FCO,FCO,16/11/2020,10966063,"423,790.00",COMPUTACENTER UK LTD,Multiple Accounts
FCO,FCO,26/11/2020,10980923,"422,662.59",GILBERT ASH LIMITED,Additions-Assets Under Construction (Oracle PA Control Account)
FCO,FCO,23/11/2020,10976069,"418,078.41",UNDP CONTRIBUTIONS,Programme Spend (Oracle Projects Control Account)
FCO,FCO,23/11/2020,10976753,"417,255.34",INTERSERVE FM LTD,Multiple Accounts
FCO,FCO,02/11/2020,10949091,"398,448.41",FCDO POSTS,Funding Overseas Posts
FCO,FCO,17/11/2020,10967804,"398,094.21",SIREN ASSOCIATES LTD,Programme Spend (Oracle Projects Control Account)
FCO,FCO,20/11/2020,10973371,"392,061.78",CPSI,Programme Spend (Oracle Projects Control Account)
FCO,FCO,02/11/2020,10949184,"380,871.00",FCDO POSTS,Funding Overseas Posts
FCO,FCO,25/11/2020,10979289,"380,467.94",MERCY CORPS,Programme Spend (Oracle Projects Control Account)
FCO,FCO,23/11/2020,10976073,"378,670.00",OECD,Programme Spend (Oracle Projects Control Account)
FCO,FCO,03/11/2020,10950449,"378,115.00",FCDO SERVICES,Repairs And Refurbishment: Works Residential
FCO,FCO,16/11/2020,10966046,"373,358.23",INTEGRITY RESEARCH AND CONSULTANCY LTD,Programme Spend (Oracle Projects Control Account)
FCO,FCO,20/11/2020,10973163,"369,904.75",ISS FACILITY SERVICES LTD FCO OP - POE,Multiple Accounts
FCO,FCO,11/11/2020,10961095,"366,442.12",THE HALO TRUST,Programme Spend (Oracle Projects Control Account)
FCO,FCO,27/11/2020,10982238,"357,277.00",G4S RISK MANAGEMENT LIMITED,Programme Spend (Oracle Projects Control Account)
FCO,FCO,17/11/2020,10967862,"350,000.00",OPCW,Programme Spend (Oracle Projects Control Account)
FCO,FCO,02/11/2020,10949191,"347,613.63",FCDO POSTS,Funding Overseas Posts
FCO,FCO,03/11/2020,10950419,"347,467.30",THE ASSOCIATION OF COMMONWEALTH UNIVERSITIES,Programme Spend (Oracle Projects Control Account)
FCO,FCO,11/11/2020,10961099,"343,195.18",FCDO SERVICES,Construction Project more than 10k
FCO,FCO,02/11/2020,10949090,"341,349.88",FCDO POSTS,Funding Overseas Posts
FCO,FCO,20/11/2020,10973249,"338,839.00",UNITED NATIONS,Programme Spend (Oracle Projects Control Account)
FCO,FCO,12/11/2020,10963495,"337,313.16",GOVERNMENT COMMUNICATIONS HEADQUARTERS,IT/IS Consultancy
FCO,FCO,19/11/2020,10971589,"334,075.22",UNHCR,Programme Spend (Oracle Projects Control Account)
FCO,FCO,12/11/2020,10962917,"333,591.93",FCDO POSTS,Funding Overseas Posts
FCO,FCO,02/11/2020,10949027,"330,098.50",FCDO SERVICES,Security: Works Non-Residential
FCO,FCO,03/11/2020,10950439,"328,526.33",FCDO SERVICES,Construction Project more than 10k
FCO,FCO,25/11/2020,10979383,"323,367.39",INCOSTRAT,Programme Spend (Oracle Projects Control Account)
FCO,FCO,06/11/2020,10954506,"320,000.00",UNOPS,Programme Spend (Oracle Projects Control Account)
FCO,FCO,11/11/2020,10961233,"318,647.79",INFLECTOR ENVIRONMENTAL SERVICES,Additions-Assets Under Construction (Oracle PA Control Account)
FCO,FCO,06/11/2020,10954673,"315,948.67",ATALIAN SERVEST,Misc Security Payments
FCO,FCO,09/11/2020,10957192,"315,086.93",ATKINS LTD,Additions-Assets Under Construction (Oracle PA Control Account)
FCO,FCO,02/11/2020,10949298,"311,407.50",ORACLE CORPORATION (UK) LTD,IT/IS Consultancy
FCO,FCO,16/11/2020,10966119,"311,235.00",IOM INTERNATIONAL ORG FOR MIGRATION,Programme Spend (Oracle Projects Control Account)
FCO,FCO,17/11/2020,10967612,"306,055.01",SECUREX AGENCIES LTD,Staff and Other Advances AP Control (Oracle Ap Control Account)
FCO,FCO,02/11/2020,10949086,"305,663.30",FCDO POSTS,Funding Overseas Posts
FCO,FCO,25/11/2020,10979302,"305,393.30",ZINC NETWORK LIMITED,Programme Spend (Oracle Projects Control Account)
FCO,FCO,24/11/2020,10977823,"304,344.75",MOTT MACDONALD LTD,Programme Spend (Oracle Projects Control Account)
FCO,FCO,16/11/2020,10966227,"301,435.53",FCDO SERVICES,Air Freight Dip Bags - Freight & Clearance Charges
FCO,FCO,30/11/2020,10984359,"300,000.00",AFRICAN UNION PEACE FUND,Programme Spend (Oracle Projects Control Account)
FCO,FCO,02/11/2020,10949201,"298,623.15",FCDO POSTS,Funding Overseas Posts
FCO,FCO,27/11/2020,10982075,"298,444.00",WORLD TELEVISION LTD,O'Seas Conferences
FCO,FCO,26/11/2020,10980732,"297,701.66",MOTT MACDONALD LTD,Programme Spend (Oracle Projects Control Account)
FCO,FCO,23/11/2020,10976075,"295,412.15",ADAM SMITH INTERNATIONAL,Programme Spend (Oracle Projects Control Account)
FCO,FCO,02/11/2020,10949029,"293,874.00",FCDO SERVICES,Security: Works Non-Residential
FCO,FCO,17/11/2020,10967658,"290,204.35",ISS FACILITY SERVICES LTD FCO OP,Multiple Accounts
FCO,FCO,05/11/2020,10953273,"288,034.02",EDF ENERGY,Electricity Non-Residential
FCO,FCO,18/11/2020,10970252,"287,629.17",SYNERGY CONSULTANCY LTD,Programme Spend (Oracle Projects Control Account)
FCO,FCO,09/11/2020,10957180,"287,613.71",ADAM SMITH INTERNATIONAL,Programme Spend (Oracle Projects Control Account)
FCO,FCO,24/11/2020,10977820,"284,858.00",CHARITIES AID FOUNDATION,Programme Spend (Oracle Projects Control Account)
FCO,FCO,02/11/2020,10949095,"283,165.24",FCDO POSTS,Funding Overseas Posts
FCO,FCO,27/11/2020,10982325,"277,820.00",UNDP CONTRIBUTIONS,Programme Spend (Oracle Projects Control Account)
FCO,FCO,16/11/2020,10966151,"277,533.47",OROSTREAM INTERNATIONAL CONTRACTS LTD,Additions-Assets Under Construction (Oracle PA Control Account)
FCO,FCO,12/11/2020,10962975,"276,114.98",FCDO POSTS,Funding Overseas Posts
FCO,FCO,12/11/2020,10962973,"274,150.36",FCDO POSTS,Funding Overseas Posts
FCO,FCO,24/11/2020,10978099,"273,624.97",845 THIRD LP,Multiple Accounts
FCO,FCO,30/11/2020,10984183,"271,106.00",ORACLE CORPORATION (UK) LTD,IT/IS Consultancy
FCO,FCO,20/11/2020,10973405,"270,414.22",URSSAF,Multiple Accounts
FCO,FCO,02/11/2020,10948991,"270,194.85",FCDO SERVICES,Residential Property Services
FCO,FCO,26/11/2020,10980788,"270,146.93",BAE SYSTEMS APPLIED INTELLIGENCE LIMITED,IT Management and Change
FCO,FCO,30/11/2020,10984143,"265,571.39",SENATOR INTERNATIONAL LTD,"Purchase of Furniture, Fittings and Domestic Appliances"
FCO,FCO,24/11/2020,10978293,"264,336.59",885 SECOND AVENUE LESSEE LLC,Multiple Accounts
FCO,FCO,06/11/2020,10954936,"263,597.40",COMPUTACENTER UK LTD,Additions-Assets Under Construction (Oracle PA Control Account)
FCO,FCO,16/11/2020,10966215,"261,997.97",THE ASIA FOUNDATION,Programme Spend (Oracle Projects Control Account)
FCO,FCO,02/11/2020,10949139,"261,327.67",FCDO POSTS,Funding Overseas Posts
FCO,FCO,18/11/2020,10969755,"257,711.20",TETRA TECH INTERNATIONAL DEVELOPMENT,Programme Spend (Oracle Projects Control Account)
FCO,FCO,12/11/2020,10963418,"257,224.00",UNICEF GLOBAL SHARED SERVICE CENTRE,Programme Spend (Oracle Projects Control Account)
FCO,FCO,30/11/2020,10984107,"254,811.81",ADAM SMITH INTERNATIONAL,Programme Spend (Oracle Projects Control Account)
FCO,FCO,26/11/2020,10980614,"252,623.54",THE ASIA FOUNDATION,Programme Spend (Oracle Projects Control Account)
FCO,FCO,04/11/2020,10951648,"252,500.00",UNDP CONTRIBUTIONS,Programme Spend (Oracle Projects Control Account)
FCO,FCO,27/11/2020,10982484,"250,000.00",WESTMINSTER FOUNDATION FOR DEMOCRACY,Programme Spend (Oracle Projects Control Account)
FCO,FCO,20/11/2020,10973148,"249,955.37",ISS FACILITY SERVICES LTD FCO OP - POE,Multiple Accounts
FCO,FCO,10/11/2020,10959386,"248,756.71",AECOM,Additions-Assets Under Construction (Oracle PA Control Account)
FCO,FCO,26/11/2020,10980839,"245,635.80",FCDO SERVICES,Construction Project more than 10k
FCO,FCO,24/11/2020,10978493,"244,640.29",THE ROYAL BANK OF SCOTLAND,Multiple Accounts
FCO,FCO,05/11/2020,10953196,"243,967.08",MINISTRY OF FINANCE,Multiple Accounts
FCO,FCO,04/11/2020,10951874,"240,942.94",ADAM SMITH INTERNATIONAL,Programme Spend (Oracle Projects Control Account)
FCO,FCO,04/11/2020,10951654,"240,715.93",ADAM SMITH INTERNATIONAL,Programme Spend (Oracle Projects Control Account)
FCO,FCO,02/11/2020,10949141,"239,667.18",FCDO POSTS,Funding Overseas Posts
FCO,FCO,11/11/2020,10961662,"237,443.26",GLOBAL AFFAIRS CANADA,Multiple Accounts
FCO,FCO,30/11/2020,10984235,"234,967.42",FCDO SERVICES,Construction Project more than 10k
FCO,FCO,05/11/2020,10953164,"234,230.16",IOM INTERNATIONAL ORG FOR MIGRATION,Programme Spend (Oracle Projects Control Account)
FCO,FCO,16/11/2020,10966213,"234,046.33",FCDO SERVICES,Air Freight Dip Bags - Freight & Clearance Charges
FCO,FCO,17/11/2020,10967876,"232,738.56",BVI RECOVERY AND DEVELOPMENT AGENCY,Programme Spend (Oracle Projects Control Account)
FCO,FCO,02/11/2020,10949096,"228,149.73",FCDO POSTS,Funding Overseas Posts
FCO,FCO,20/11/2020,10973160,"228,079.89",ISS FACILITY SERVICES LTD FCO OP - POE,Multiple Accounts
FCO,FCO,17/11/2020,10967501,"227,088.46",CLICKSUPER,Multiple Accounts
FCO,FCO,13/11/2020,10964538,"225,377.75",OROSTREAM INTERNATIONAL CONTRACTS LTD,Additions-Assets Under Construction (Oracle PA Control Account)
FCO,FCO,02/11/2020,10949198,"225,312.77",FCDO POSTS,Funding Overseas Posts
FCO,FCO,04/11/2020,10951927,"225,000.00",EXTRAORDINARY CHAMBER IN THE COURT OF CAMBODIA,Programme Spend (Oracle Projects Control Account)
FCO,FCO,19/11/2020,10971962,"221,376.80",GRUNLEY CONSTRUCTION CO INC,Additions-Assets Under Construction (Oracle PA Control Account)
FCO,FCO,26/11/2020,10980780,"220,597.58",BAE SYSTEMS APPLIED INTELLIGENCE LIMITED,IT Management and Change
FCO,FCO,23/11/2020,10976237,"213,072.61",SEGURIDAD SOCIAL,Multiple Accounts
FCO,FCO,13/11/2020,10964684,"213,009.00",CORPORATE TRAVEL MANAGEMENT NORTH LTD,UK - Air Travel
FCO,FCO,19/11/2020,10971600,"211,654.00",SYNERGY FOR JUSTICE LTD,Programme Spend (Oracle Projects Control Account)
FCO,FCO,02/11/2020,10949199,"210,250.58",FCDO POSTS,Funding Overseas Posts
FCO,FCO,11/11/2020,10961078,"210,073.00",UNDP CONTRIBUTIONS,Programme Spend (Oracle Projects Control Account)
FCO,FCO,24/11/2020,10977873,"208,786.86",PROFESSIONAL LANGUAGE SOLUTIONS,Language Tuition: Essential
FCO,FCO,03/11/2020,10950365,"200,897.19",INTERNATIONAL ALERT,Programme Spend (Oracle Projects Control Account)
FCO,FCO,17/11/2020,10967607,"199,757.25",CENTER FOR ADVANCED DEFENSE STUDIES,Programme Spend (Oracle Projects Control Account)
FCO,FCO,12/11/2020,10962723,"198,150.77",GW CONSULTING UK LTD,Multiple Accounts
FCO,FCO,17/11/2020,10967614,"197,996.00",HEALTH EDUCATION ENGLAND,Programme Spend (Oracle Projects Control Account)
FCO,FCO,02/11/2020,10949206,"196,195.85",FCDO POSTS,Funding Overseas Posts
FCO,FCO,02/11/2020,10949102,"196,078.36",FCDO POSTS,Funding Overseas Posts
FCO,FCO,02/11/2020,10949207,"195,112.49",FCDO POSTS,Funding Overseas Posts
FCO,FCO,26/11/2020,10980961,"194,682.42",CAPGEMINI UK PLC,IT Support
FCO,FCO,19/11/2020,10971879,"190,118.00",THE BRITISH COUNCIL,Programme Spend (Oracle Projects Control Account)
FCO,FCO,02/11/2020,10949144,"189,924.93",FCDO POSTS,Funding Overseas Posts
FCO,FCO,09/11/2020,10957156,"189,431.33",ADAM SMITH INTERNATIONAL,Programme Spend (Oracle Projects Control Account)
FCO,FCO,17/11/2020,10967544,"187,312.30",BSI STANDARDS INSTITUTION & TRAINING,Programme Spend (Oracle Projects Control Account)
FCO,FCO,17/11/2020,10967608,"186,145.00",UNITED NATIONS,Programme Spend (Oracle Projects Control Account)
FCO,FCO,06/11/2020,10954573,"185,000.00",UNITED NATIONS,Programme Spend (Oracle Projects Control Account)
FCO,FCO,04/11/2020,10951870,"184,429.90",ADAM SMITH INTERNATIONAL,Programme Spend (Oracle Projects Control Account)
FCO,FCO,03/11/2020,10950453,"183,967.12",FCDO SERVICES,Repairs And Refurbishment: Works Residential
FCO,FCO,09/11/2020,10957191,"180,000.00",IOM INTERNATIONAL ORG FOR MIGRATION,Programme Spend (Oracle Projects Control Account)
FCO,FCO,09/11/2020,10957533,"179,304.99",GW CONSULTING UK LTD,UK Mobile Guarding Contract overseas
FCO,FCO,26/11/2020,10980848,"178,292.33",FCDO SERVICES,Repairs And Refurbishment: Works Residential
FCO,FCO,02/11/2020,10949140,"175,364.02",FCDO POSTS,Funding Overseas Posts
FCO,FCO,11/11/2020,10961185,"172,877.45",ALBANY ASSOCIATES,Programme Spend (Oracle Projects Control Account)
FCO,FCO,23/11/2020,10976089,"172,774.19",FCDO SERVICES,Specialist Contractors
FCO,FCO,02/11/2020,10949187,"172,574.10",FCDO POSTS,Funding Overseas Posts
FCO,FCO,18/11/2020,10969831,"171,583.00",SAFELANE GLOBAL LIMITED,Programme Spend (Oracle Projects Control Account)
FCO,FCO,25/11/2020,10979421,"171,419.00",ADAM SMITH INTERNATIONAL,Programme Spend (Oracle Projects Control Account)
FCO,FCO,25/11/2020,10979453,"169,768.97",OLYMPIC CONSTRUCTION LTD,Programme Spend (Oracle Projects Control Account)
FCO,FCO,02/11/2020,10949271,"167,922.80",COMPUTACENTER UK LTD,IT Management and Change
FCO,FCO,05/11/2020,10953633,"167,685.86",DEFENCE BUSINESS SERVICES FINANCE,Mod Guarding Services Residential
FCO,FCO,02/11/2020,10949106,"167,145.85",FCDO POSTS,Funding Overseas Posts
FCO,FCO,10/11/2020,10959509,"166,709.73",MINIMAL RISK CONSULTANCY LTD,UK Guarding Contracts Overseas
FCO,FCO,02/11/2020,10949084,"166,598.14",FCDO POSTS,Funding Overseas Posts
FCO,FCO,19/11/2020,10971910,"166,172.75",CABINET OFFICE,Programme Spend (Oracle Projects Control Account)
FCO,FCO,13/11/2020,10964416,"163,336.15",GOVERNMENT OF THE REPUBLIC NIGER,Programme Spend (Oracle Projects Control Account)
FCO,FCO,04/11/2020,10951664,"162,956.24",TORRE ESPACIO CASTELLANA SAU,Multiple Accounts
FCO,FCO,09/11/2020,10957282,"162,417.20",COMPUTACENTER UK LTD,IT Management and Change
FCO,FCO,25/11/2020,10979281,"160,854.39",FCDO SERVICES,Construction Project more than 10k
FCO,FCO,23/11/2020,10976600,"160,475.81",INTERSERVE FM LTD,Multiple Accounts
FCO,FCO,20/11/2020,10973152,"160,417.62",ISS FACILITY SERVICES LTD FCO OP - POE,Multiple Accounts
FCO,FCO,16/11/2020,10966318,"158,833.82",BUMBAS CONSTRUCTION,Programme Spend (Oracle Projects Control Account)
FCO,FCO,16/11/2020,10966048,"158,450.95",CARE INTERNATIONAL UK,Programme Spend (Oracle Projects Control Account)
FCO,FCO,04/11/2020,10972047,"157,777.44",THE ROYAL BANK OF SCOTLAND,GPC Clearing Account
FCO,FCO,18/11/2020,10969915,"157,584.97",ARK GROUP DMCC,Programme Spend (Oracle Projects Control Account)
FCO,FCO,23/11/2020,10976830,"156,952.35",INTERSERVE FM LTD,Construction Project more than 10k
FCO,FCO,05/11/2020,10953171,"156,535.53",GET SAFE ONLINE,Programme Spend (Oracle Projects Control Account)
FCO,FCO,20/11/2020,10973301,"156,070.79",HEALIX INTERNATIONAL LTD,FCO Healthcare Scheme
FCO,FCO,27/11/2020,10982353,"156,070.79",HEALIX INTERNATIONAL LTD,FCO Healthcare Scheme
FCO,FCO,02/11/2020,10949210,"154,191.10",FCDO POSTS,Funding Overseas Posts
FCO,FCO,12/11/2020,10962974,"154,191.10",FCDO POSTS,Funding Overseas Posts
FCO,FCO,02/11/2020,10949240,"153,216.57",FCDO POSTS,Funding Overseas Posts
FCO,FCO,30/11/2020,10984098,"152,354.00",NATIONAL DEMOCRATIC INSTITUTE,Programme Spend (Oracle Projects Control Account)
FCO,FCO,03/11/2020,10949995,"151,575.01",SEARCH FOR COMMON GROUND,Programme Spend (Oracle Projects Control Account)
FCO,FCO,20/11/2020,10973136,"150,352.29",ISS FACILITY SERVICES LTD FCO OP - POE,Multiple Accounts
FCO,FCO,06/11/2020,10954681,"150,101.57",ADAM SMITH INTERNATIONAL,Programme Spend (Oracle Projects Control Account)
FCO,FCO,17/11/2020,10967854,"150,000.00",OPCW,Programme Spend (Oracle Projects Control Account)
FCO,FCO,10/11/2020,10959760,"148,891.71",Pace Construction,Programme Spend (Oracle Projects Control Account)
FCO,FCO,02/11/2020,10948952,"148,633.91",GILBERT ASH LIMITED,Unscheduled repairs to building infrastructure
FCO,FCO,02/11/2020,10949031,"148,371.00",FCDO SERVICES,Security: Works Non-Residential
FCO,FCO,02/11/2020,10948996,"148,000.00",FCDO SERVICES,Additions-Assets Under Construction (Oracle PA Control Account)
FCO,FCO,13/11/2020,10964490,"146,266.58",BDO LLP,Programme Spend (Oracle Projects Control Account)
FCO,FCO,04/11/2020,10952203,"144,794.46",NATIONAL CAPITAL COMMISSION,Rental Payments - non residential
FCO,FCO,09/11/2020,10957527,"144,174.65",Pace Construction,Programme Spend (Oracle Projects Control Account)
FCO,FCO,02/11/2020,10949202,"144,098.45",FCDO POSTS,Funding Overseas Posts
FCO,FCO,06/11/2020,10972047,"143,719.35",THE ROYAL BANK OF SCOTLAND,GPC Clearing Account
FCO,FCO,12/11/2020,10962754,"143,474.17",THE BRITISH COUNCIL,Programme Spend (Oracle Projects Control Account)
FCO,FCO,26/11/2020,10981292,"142,336.00",MILTON KEYNES COUNCIL,Rates Taxes Non-Residential
FCO,FCO,03/11/2020,10950172,"140,541.54",TRANSAMERICA,Multiple Accounts
FCO,FCO,03/11/2020,10972047,"139,979.45",THE ROYAL BANK OF SCOTLAND,GPC Clearing Account
FCO,FCO,10/11/2020,10959513,"139,580.00",INNOVATION AND INSIGHT FZE,Programme Spend (Oracle Projects Control Account)
FCO,FCO,24/11/2020,10978033,"138,665.52",PINPOINT CORPORATE SERVICES LIMITED,Programme Spend (Oracle Projects Control Account)
FCO,FCO,02/11/2020,10949200,"137,045.95",FCDO POSTS,Funding Overseas Posts
FCO,FCO,04/11/2020,10951781,"135,888.00",UNITED NATIONS POPULATION FUND,Programme Spend (Oracle Projects Control Account)
FCO,FCO,30/11/2020,10984180,"135,859.93",Proctor's Construction,Programme Spend (Oracle Projects Control Account)
FCO,FCO,24/11/2020,10977630,"135,849.26",ACTIONAID NIGERIA,Programme Spend (Oracle Projects Control Account)
FCO,FCO,25/11/2020,10979765,"135,784.17",KPMG FIDUCIAIRE,Multiple Accounts
FCO,FCO,02/11/2020,10949143,"135,660.67",FCDO POSTS,Funding Overseas Posts
FCO,FCO,23/11/2020,10976696,"135,533.61",INTERSERVE FM LTD,Multiple Accounts
FCO,FCO,10/11/2020,10959295,"133,984.00",PEACEFUL CHANGE INITIATIVE,Programme Spend (Oracle Projects Control Account)
FCO,FCO,10/11/2020,10959302,"132,483.60",PALLADIUM,Programme Spend (Oracle Projects Control Account)
FCO,FCO,18/11/2020,10969806,"130,947.84",FCDO SERVICES,IT Management and Change
FCO,FCO,02/11/2020,10972047,"130,907.43",THE ROYAL BANK OF SCOTLAND,GPC Clearing Account
FCO,FCO,23/11/2020,10976146,"130,697.46",MERCY CORPS,Programme Spend (Oracle Projects Control Account)
FCO,FCO,27/11/2020,10982260,"129,593.20",POLICY AND LEGAL ADVOCACY CENTRE,Programme Spend (Oracle Projects Control Account)
FCO,FCO,30/11/2020,10984257,"129,231.00",FCDO SERVICES,Construction Project more than 10k
FCO,FCO,25/11/2020,10979264,"128,229.51",PRICEWATERHOUSECOOPERS LLP,Programme Spend (Oracle Projects Control Account)
FCO,FCO,20/11/2020,10973155,"127,662.98",ISS FACILITY SERVICES LTD FCO OP - POE,Multiple Accounts
FCO,FCO,11/11/2020,10961325,"126,882.18",ATLANTIC COUNCIL DIGITAL FORENSIC RESEARCH LAB,Programme Spend (Oracle Projects Control Account)
FCO,FCO,12/11/2020,10963615,"126,238.00",UNICEF GLOBAL SHARED SERVICE CENTRE,Programme Spend (Oracle Projects Control Account)
FCO,FCO,25/11/2020,10979458,"125,724.15",ST ANDREWS REFUGEE SERVICES,Programme Spend (Oracle Projects Control Account)
FCO,FCO,17/11/2020,10967809,"125,407.95",STRATAGEM CONSULTING,Programme Spend (Oracle Projects Control Account)
FCO,FCO,20/11/2020,10973165,"125,340.16",ISS FACILITY SERVICES LTD FCO OP - POE,Multiple Accounts
FCO,FCO,27/11/2020,10982071,"125,135.64",INTERNATIONAL ORGANIZATION FOR MIGRATION,Programme Spend (Oracle Projects Control Account)
FCO,FCO,06/11/2020,10954924,"125,104.73",HOTELLINE FOR TOURISTIC INVESTMENT LTD,Multiple Accounts
FCO,FCO,06/11/2020,10954568,"125,000.00",ORGANIZATION FOR SECURITY AND CO-OPERATION IN EUROPE,Programme Spend (Oracle Projects Control Account)
FCO,FCO,09/11/2020,10957265,"125,000.00",ERNST AND YOUNG LLP,Programme Spend (Oracle Projects Control Account)
FCO,FCO,25/11/2020,10979797,"124,682.89",BENNETT CONSTRUCTION COMPANY LTD,Programme Spend (Oracle Projects Control Account)
FCO,FCO,02/11/2020,10949177,"124,115.68",FCDO POSTS,Funding Overseas Posts
FCO,FCO,12/11/2020,10963609,"123,429.50",ZINC NETWORK LIMITED,Programme Spend (Oracle Projects Control Account)
FCO,FCO,05/11/2020,10953182,"123,143.45",CONCILIATION RESOURCES,Programme Spend (Oracle Projects Control Account)
FCO,FCO,13/11/2020,10964590,"122,891.10",OVE ARUP & PARTNERS LTD,Programme Spend (Oracle Projects Control Account)
FCO,FCO,10/11/2020,10959234,"122,776.57",PASHA CONSTRUCTION LLC,Rental Payments - residential
FCO,FCO,13/11/2020,10964583,"122,712.14",UNITED NATIONS,Programme Spend (Oracle Projects Control Account)
FCO,FCO,16/11/2020,10966059,"122,642.00",MERCY CORPS,Programme Spend (Oracle Projects Control Account)
FCO,FCO,20/11/2020,10972752,"122,420.54",BHC INDIA STAFF PROVIDENT FUND,Multiple Accounts
FCO,FCO,17/11/2020,10967655,"121,024.05",GAKURU JEAN DE LA CROIX,Multiple Accounts
FCO,FCO,25/11/2020,10979395,"120,315.00",UNITED NATIONS,Programme Spend (Oracle Projects Control Account)
FCO,FCO,09/11/2020,10957280,"118,936.00",BELLS POWER SERVICES LTD,Additions-Assets Under Construction (Oracle PA Control Account)
FCO,FCO,12/11/2020,10963288,"118,334.00",UNITED NATIONS,Programme Spend (Oracle Projects Control Account)
FCO,FCO,12/11/2020,10962749,"117,936.36",THE BRITISH COUNCIL,Programme Spend (Oracle Projects Control Account)
FCO,FCO,09/11/2020,10957153,"117,799.32",Bankers Assurance SAL,Multiple Accounts
FCO,FCO,24/11/2020,10978092,"117,572.58",COUNCIL OF EUROPE,Programme Spend (Oracle Projects Control Account)
FCO,FCO,18/11/2020,10969742,"117,081.02",SHANGHAI FOREIGN AGENCY SERVICE COMPANY,Multiple Accounts
FCO,FCO,02/11/2020,10949215,"117,002.85",FCDO POSTS,Funding Overseas Posts
FCO,FCO,17/11/2020,10968133,"116,591.60","ORCHARD, ROMNEY, BECK & ASSOC INC",Programme Spend (Oracle Projects Control Account)
FCO,FCO,13/11/2020,10964946,"116,369.28",FCDO POSTS,Funding Overseas Posts
FCO,FCO,17/11/2020,10967669,"116,280.30",ISS FACILITY SERVICES LTD FCO OP,Multiple Accounts
FCO,FCO,10/11/2020,10959432,"115,977.54",BAE SYSTEMS APPLIED INTELLIGENCE LIMITED,IT Management and Change
FCO,FCO,10/11/2020,10959121,"115,970.65",KBR,Multiple Accounts
FCO,FCO,11/11/2020,10961058,"115,970.65",KBR,Multiple Accounts
FCO,FCO,16/11/2020,10966315,"115,918.77",BENNETT CONSTRUCTION COMPANY LTD,Programme Spend (Oracle Projects Control Account)
FCO,FCO,16/11/2020,10966313,"115,715.61",BENNETT CONSTRUCTION COMPANY LTD,Programme Spend (Oracle Projects Control Account)
FCO,FCO,16/11/2020,10966106,"115,603.18",SIREN ASSOCIATES LTD,Programme Spend (Oracle Projects Control Account)
FCO,FCO,23/11/2020,10976870,"115,183.30",INTERSERVE FM LTD,Multiple Accounts
FCO,FCO,03/11/2020,10950460,"114,725.00",FCDO SERVICES,Additions-Assets Under Construction (Oracle PA Control Account)
FCO,FCO,05/11/2020,10953166,"114,686.00",INTERNATIONAL ALERT,Programme Spend (Oracle Projects Control Account)
FCO,FCO,26/11/2020,10980725,"114,630.00",INTERNATIONAL ENERGY AGENCY,Programme Spend (Oracle Projects Control Account)
FCO,FCO,20/11/2020,10973254,"114,517.80",BAE SYSTEMS APPLIED INTELLIGENCE LIMITED,IT Management and Change
FCO,FCO,24/11/2020,10978285,"113,154.32",OAKTHORN MAXIMUM SECURITY VILLAGE,Rental Payments - residential
FCO,FCO,02/11/2020,10949185,"113,120.58",FCDO POSTS,Funding Overseas Posts
FCO,FCO,25/11/2020,10979392,"113,065.87",MITEL NETWORKS LTD,IT Networking
FCO,FCO,05/11/2020,10972047,"113,049.41",THE ROYAL BANK OF SCOTLAND,GPC Clearing Account
FCO,FCO,26/11/2020,10980854,"112,665.00",THE CARTER CENTER INC,Programme Spend (Oracle Projects Control Account)
FCO,FCO,02/11/2020,10949208,"111,875.77",FCDO POSTS,Funding Overseas Posts
FCO,FCO,23/11/2020,10976839,"111,791.15",INTERSERVE FM LTD,Residential Property Services
FCO,FCO,11/11/2020,10961206,"109,345.00",CARNEGIE ENDOWNMENT FOR INTERNATIONAL PEACE,Programme Spend (Oracle Projects Control Account)
FCO,FCO,17/11/2020,10967720,"109,286.74",ISS FACILITY SERVICES LTD FCO OP,Multiple Accounts
FCO,FCO,16/11/2020,10966242,"108,890.61",OPERADORA ATXK,Additions-Assets Under Construction (Oracle PA Control Account)
FCO,FCO,17/11/2020,10967749,"108,614.42",ISS FACILITY SERVICES LTD FCO OP,Multiple Accounts
FCO,FCO,12/11/2020,10963276,"108,228.12",FCDO SERVICES,Vehicle Hire
FCO,FCO,25/11/2020,10979808,"108,156.00",Pace Construction,Programme Spend (Oracle Projects Control Account)
FCO,FCO,05/11/2020,10953621,"108,065.84",WYG GROUP LIMITED,Programme Spend (Oracle Projects Control Account)
FCO,FCO,02/11/2020,10949196,"107,333.30",FCDO POSTS,Funding Overseas Posts
FCO,FCO,24/11/2020,10978587,"105,064.83",INTELLICARE,Multiple Accounts
FCO,FCO,30/11/2020,10984161,"104,930.32",PA CONSULTING GROUP,Programme Spend (Oracle Projects Control Account)
FCO,FCO,25/11/2020,10979257,"104,430.07",THE HALO TRUST,Programme Spend (Oracle Projects Control Account)
FCO,FCO,04/11/2020,10951565,"104,227.00",FCDO SERVICES,Additions-Assets Under Construction (Oracle PA Control Account)
FCO,FCO,09/11/2020,10957252,"104,049.00",ERNST AND YOUNG LLP,Programme Spend (Oracle Projects Control Account)
FCO,FCO,17/11/2020,10967764,"103,949.25",ISS FACILITY SERVICES LTD FCO OP,Multiple Accounts
FCO,FCO,05/11/2020,10953289,"103,949.00",PEACEFUL CHANGE INITIATIVE,Programme Spend (Oracle Projects Control Account)
FCO,FCO,09/11/2020,10957269,"103,491.25",PEARL PLAZA REAL ESTATE MANAGEMENT LLC,Rental Payments - non residential
FCO,FCO,27/11/2020,10982163,"103,459.74",SUSTAINABLE CRIMINAL JUSTICE SOLUTIONS,Programme Spend (Oracle Projects Control Account)
FCO,FCO,27/11/2020,10982232,"103,412.15",ADAM SMITH INTERNATIONAL,Programme Spend (Oracle Projects Control Account)
FCO,FCO,04/11/2020,10951575,"103,308.36",FCDO SERVICES,Construction Project more than 10k
FCO,FCO,20/11/2020,10973153,"103,059.49",ISS FACILITY SERVICES LTD FCO OP - POE,Multiple Accounts
FCO,FCO,18/11/2020,10969734,"101,799.36",ADP,Multiple Accounts
FCO,FCO,05/11/2020,10953358,"101,760.72",ADP,Multiple Accounts
FCO,FCO,17/11/2020,10968146,"101,733.81",TRANSAMERICA,Multiple Accounts
FCO,FCO,25/11/2020,10979266,"101,424.85",FCDO SERVICES,Additions-Assets Under Construction (Oracle PA Control Account)
FCO,FCO,23/11/2020,10976108,"101,404.00",FCDO SERVICES,Additions-Assets Under Construction (Oracle PA Control Account)
FCO,FCO,11/11/2020,10961157,"101,340.88",AFRICAN SKIES LTD,Local Guards
FCO,FCO,04/11/2020,10951570,"101,230.19",FCDO SERVICES,Additions-Assets Under Construction (Oracle PA Control Account)
FCO,FCO,10/11/2020,10959473,"100,890.93",THE GLOBAL STRATEGY NETWORK,Programme Spend (Oracle Projects Control Account)
FCO,FCO,25/11/2020,10979466,"99,810.00",CABINET OFFICE,Programme Spend (Oracle Projects Control Account)
FCO,FCO,18/11/2020,10969791,"99,612.25",FCDO SERVICES,IT/IS Consultancy
FCO,FCO,05/11/2020,10953525,"99,484.49",IRISH LIFE,Multiple Accounts
FCO,FCO,27/11/2020,10982036,"98,783.65",ORION HOTELS LLC,Rental Payments - non residential
FCO,FCO,19/11/2020,10971478,"98,199.00",OXFORD RESEARCH GROUP,Programme Spend (Oracle Projects Control Account)
FCO,FCO,11/11/2020,10961103,"98,133.00",HENRY DUNANT CENTRE FOR HUMANITARIAN DIALOGUE,Programme Spend (Oracle Projects Control Account)
FCO,FCO,02/11/2020,10949195,"97,354.61",FCDO POSTS,Funding Overseas Posts
FCO,FCO,04/11/2020,10952343,"96,974.40",CRIMINAL JUSTICE TASK FORCE - CJTF,Recharge Suspense Account (Oracle PA Control Account)
FCO,FCO,06/11/2020,10954628,"96,861.79",COMMISSION FOR JUSTICE AND ACCOUNTABILITY,Programme Spend (Oracle Projects Control Account)
FCO,FCO,03/11/2020,10950430,"96,292.24",CHEMONICS INTERNATIONAL INC,Programme Spend (Oracle Projects Control Account)
FCO,FCO,10/11/2020,10959293,"96,109.00",PEACEFUL CHANGE INITIATIVE,Programme Spend (Oracle Projects Control Account)
FCO,FCO,19/11/2020,10971445,"95,986.45",US DEPARTMENT OF STATE,Post - Air Travel
FCO,FCO,27/11/2020,10982188,"95,981.64",ADAM SMITH INTERNATIONAL,Programme Spend (Oracle Projects Control Account)
FCO,FCO,23/11/2020,10976840,"95,836.79",INTERSERVE FM LTD,Residential Property Services
FCO,FCO,13/11/2020,10964690,"95,127.59",LEGAL AND GENERAL ASSURANCE SOCIETY LTD,Additional Volunteer Contribution
FCO,FCO,23/11/2020,10976354,"94,665.11",THOMSON FOUNDATION,Programme Spend (Oracle Projects Control Account)
FCO,FCO,02/11/2020,10948989,"94,401.50",FCDO SERVICES,Security: Works Non-Residential
FCO,FCO,25/11/2020,10979286,"94,250.24",CROWN AGENTS BANK,Programme Spend (Oracle Projects Control Account)
FCO,FCO,17/11/2020,10967690,"94,199.69",ISS FACILITY SERVICES LTD FCO OP,Multiple Accounts
FCO,FCO,25/11/2020,10979795,"94,119.46",BENNETT CONSTRUCTION COMPANY LTD,Programme Spend (Oracle Projects Control Account)
FCO,FCO,05/11/2020,10953299,"94,089.00",THE ASIA FOUNDATION,Programme Spend (Oracle Projects Control Account)
FCO,FCO,03/11/2020,10950503,"93,905.00",CABINET OFFICE,Training Courses
FCO,FCO,05/11/2020,10953941,"92,404.42",DELEGATION OF THE EUROPEAN UNION TO SOUTH SUDAN EEAS,Rental Payments - residential
FCO,FCO,02/11/2020,10949220,"92,154.00",GLOBAL DISINFORMATION INDEX,Programme Spend (Oracle Projects Control Account)
FCO,FCO,18/11/2020,10969620,"91,527.34",ALMUTAKHASSISA MEDICAL INSURANCE CO,LS Staff Medical Costs
FCO,FCO,20/11/2020,10973315,"91,403.10",SECURITY SERVICES GROUP,Unscheduled repairs to building infrastructure
FCO,FCO,02/11/2020,10949189,"91,383.45",FCDO POSTS,Funding Overseas Posts
FCO,FCO,20/11/2020,10973285,"91,323.27",SECURITY SERVICES GROUP,Unscheduled repairs to building infrastructure
FCO,FCO,30/11/2020,10984102,"90,860.00",MOTT MACDONALD LTD,Programme Spend (Oracle Projects Control Account)
FCO,FCO,09/11/2020,10957340,"90,406.47",JOURNALISM DEVELOPMENT NETWORK,Programme Spend (Oracle Projects Control Account)
FCO,FCO,18/11/2020,10969960,"90,126.00",GLOBAL DISINFORMATION INDEX,Programme Spend (Oracle Projects Control Account)
FCO,FCO,02/11/2020,10949179,"90,039.30",FCDO POSTS,Funding Overseas Posts
FCO,FCO,09/11/2020,10957343,"90,007.09",JOURNALISM DEVELOPMENT NETWORK,Programme Spend (Oracle Projects Control Account)
FCO,FCO,09/11/2020,10957380,"89,776.01",THE BRITISH COUNCIL,Programme Spend (Oracle Projects Control Account)
FCO,FCO,19/11/2020,10971927,"89,193.36",ALBANY ASSOCIATES,Programme Spend (Oracle Projects Control Account)
FCO,FCO,26/11/2020,10980776,"89,000.00",FCDO SERVICES,IT/IS Consultancy
FCO,FCO,19/11/2020,10971893,"86,419.79",SOLIDARITY FUND POLAND,Programme Spend (Oracle Projects Control Account)
FCO,FCO,25/11/2020,10979294,"86,231.00",FCDO SERVICES,Additions-Assets Under Construction (Oracle PA Control Account)
FCO,FCO,20/11/2020,10973169,"86,110.35",ISS FACILITY SERVICES LTD FCO OP - POE,Multiple Accounts
FCO,FCO,05/11/2020,10953403,"85,671.73",CULTURA INGLESA,Multiple Accounts
FCO,FCO,04/11/2020,10951589,"85,520.64",HOME OFFICE,Programme Spend (Oracle Projects Control Account)
FCO,FCO,16/11/2020,10966082,"85,452.05",TETRA TECH INTERNATIONAL DEVELOPMENT,Programme Spend (Oracle Projects Control Account)
FCO,FCO,18/11/2020,10970043,"85,180.47",AXIOM INTERNATIONAL LTD,Programme Spend (Oracle Projects Control Account)
FCO,FCO,05/11/2020,10953510,"84,475.99",IRISH LIFE,Multiple Accounts
FCO,FCO,24/11/2020,10978133,"84,275.79",INTERSERVE FM LTD,Additions-Assets Under Construction (Oracle PA Control Account)
FCO,FCO,02/11/2020,10949148,"84,109.61",FCDO POSTS,Funding Overseas Posts
FCO,FCO,10/11/2020,10959429,"84,036.15",BAE SYSTEMS APPLIED INTELLIGENCE LIMITED,IT Management and Change
FCO,FCO,24/11/2020,10978284,"83,697.04",KPMG FIDUCIAIRE,Multiple Accounts
FCO,FCO,11/11/2020,10961463,"83,682.11",BRITISH TELECOM PLC,Multiple Accounts
FCO,FCO,23/11/2020,10976806,"83,499.86",INTERSERVE FM LTD,Multiple Accounts
FCO,FCO,26/11/2020,10980795,"83,338.56",BAE SYSTEMS APPLIED INTELLIGENCE LIMITED,IT Management and Change
FCO,FCO,26/11/2020,10980789,"83,252.58",BAE SYSTEMS APPLIED INTELLIGENCE LIMITED,IT Management and Change
FCO,FCO,25/11/2020,10979420,"82,993.91",INFLECTOR ENVIRONMENTAL SERVICES,Additions-Assets Under Construction (Oracle PA Control Account)
FCO,FCO,19/11/2020,10971359,"81,570.81",GUANGDONG SERVICE OFFICE FOR FOREIGN ESTABLISHMENTS,Multiple Accounts
FCO,FCO,12/11/2020,10962943,"81,396.40",FCDO POSTS,Funding Overseas Posts
FCO,FCO,24/11/2020,10978589,"80,921.56",INTELLICARE,Multiple Accounts
FCO,FCO,25/11/2020,10979262,"80,881.09",ITAD LTD,Programme Spend (Oracle Projects Control Account)
FCO,FCO,02/11/2020,10949116,"80,721.87",UCL CONSULTANTS LIMITED,Specialist Training (Devolved)
FCO,FCO,17/11/2020,10967723,"80,248.10",ISS FACILITY SERVICES LTD FCO OP,Multiple Accounts
FCO,FCO,20/11/2020,10973327,"79,807.32",HUMANIS,Multiple Accounts
FCO,FCO,23/11/2020,10976084,"79,150.20",AXIOM INTERNATIONAL LTD,Programme Spend (Oracle Projects Control Account)
FCO,FCO,23/11/2020,10976349,"78,407.61",ADVICE ON INDIVIDUAL RIGHTS IN EUROPE,Programme Spend (Oracle Projects Control Account)
FCO,FCO,09/11/2020,10957029,"77,955.78",AL JABER INTERNATIONAL GROUP COMPANIES CONSTRUCTION SERVICES,Security: Works Non-Residential
FCO,FCO,24/11/2020,10978142,"77,945.58",OEGK OESTERR GESUNDHEITSKASSE,Multiple Accounts
FCO,FCO,17/11/2020,10968088,"77,881.71",AETNA,Multiple Accounts
FCO,FCO,27/11/2020,10982278,"76,477.05",BAE SYSTEMS APPLIED INTELLIGENCE LIMITED,IT/IS Consultancy
FCO,FCO,09/11/2020,10972047,"76,292.41",THE ROYAL BANK OF SCOTLAND,GPC Clearing Account
FCO,FCO,06/11/2020,10954660,"76,160.00",METROPOLITAN POLICE AUTHORITY,Programme Spend (Oracle Projects Control Account)
FCO,FCO,26/11/2020,10981243,"76,089.99",EUROPEAN ENDOWMENT FOR DEMOCRACY,Programme Spend (Oracle Projects Control Account)
FCO,FCO,23/11/2020,10976167,"75,987.30",TETRA TECH INTERNATIONAL DEVELOPMENT,Programme Spend (Oracle Projects Control Account)
FCO,FCO,20/11/2020,10972856,"75,846.45",SOUTH REVENUE SERVICE,Multiple Accounts
FCO,FCO,17/11/2020,10967639,"75,817.98",ISS FACILITY SERVICES LTD FCO OP,Multiple Accounts
FCO,FCO,20/11/2020,10973225,"75,630.94",AXIOM INTERNATIONAL LTD,Programme Spend (Oracle Projects Control Account)
FCO,FCO,10/11/2020,10959492,"75,191.06",BAE SYSTEMS APPLIED INTELLIGENCE LIMITED,IT Management and Change
FCO,FCO,25/11/2020,10979386,"74,938.94",MITEL NETWORKS LTD,IT Networking
FCO,FCO,30/11/2020,10984228,"74,706.24",FCDO SERVICES,IT Support
FCO,FCO,19/11/2020,10971924,"74,704.00",COMPUTACENTER UK LTD,IT Support
FCO,FCO,19/11/2020,10971477,"74,650.00",FCDO SERVICES,Mobile Telephone Equipment
FCO,FCO,23/11/2020,10976106,"74,546.00",IOM INTERNATIONAL ORG FOR MIGRATION,Programme Spend (Oracle Projects Control Account)
FCO,FCO,17/11/2020,10967621,"74,220.75",ISS FACILITY SERVICES LTD FCO OP,Multiple Accounts
FCO,FCO,23/11/2020,10976309,"73,738.47",ERNST AND YOUNG LLP,Programme Spend (Oracle Projects Control Account)
FCO,FCO,23/11/2020,10976317,"73,738.47",ERNST AND YOUNG LLP,Programme Spend (Oracle Projects Control Account)
FCO,FCO,23/11/2020,10976320,"73,738.47",ERNST AND YOUNG LLP,Programme Spend (Oracle Projects Control Account)
FCO,FCO,23/11/2020,10976325,"73,738.47",ERNST AND YOUNG LLP,Programme Spend (Oracle Projects Control Account)
FCO,FCO,23/11/2020,10976329,"73,738.47",ERNST AND YOUNG LLP,Programme Spend (Oracle Projects Control Account)
FCO,FCO,17/11/2020,10967597,"72,272.73",COMPUTACENTER UK LTD,IT/IS Consultancy
FCO,FCO,06/11/2020,10954582,"72,159.72",FCDO SERVICES,Additions-Assets Under Construction (Oracle PA Control Account)
FCO,FCO,10/11/2020,10959305,"72,152.60",PALLADIUM,Programme Spend (Oracle Projects Control Account)
FCO,FCO,10/11/2020,10959269,"71,957.36",GW CONSULTING UK LTD,UK Guarding Contracts Overseas
FCO,FCO,19/11/2020,10971900,"71,155.34",UNIVERSITY OF OXFORD,Programme Spend (Oracle Projects Control Account)
FCO,FCO,23/11/2020,10976770,"71,075.42",INTERSERVE FM LTD,Construction Project more than 10k
FCO,FCO,20/11/2020,10973168,"70,619.58",ISS FACILITY SERVICES LTD FCO OP - POE,Multiple Accounts
FCO,FCO,27/11/2020,10982168,"70,258.87",ADAM SMITH INTERNATIONAL,Programme Spend (Oracle Projects Control Account)
FCO,FCO,20/11/2020,10973150,"69,988.87",ISS FACILITY SERVICES LTD FCO OP - POE,Multiple Accounts
FCO,FCO,24/11/2020,10977676,"69,927.22",DATACOM EMPLOYER SERVICES,Multiple Accounts
FCO,FCO,10/11/2020,10959412,"69,850.00",UCL CONSULTANTS LIMITED,Multiple Accounts
FCO,FCO,12/11/2020,10963591,"69,821.57",UNITED NATIONS,Programme Spend (Oracle Projects Control Account)
FCO,FCO,17/11/2020,10967788,"68,369.75",INSTITUTO DE GESTAO FINANCEIRA DA SEGURANCA SOCIAL,Multiple Accounts
FCO,FCO,10/11/2020,10959374,"67,797.50",MERITAIN HEALTH,Multiple Accounts
FCO,FCO,11/11/2020,10961218,"67,786.28",CABINET OFFICE,Programme Spend (Oracle Projects Control Account)
FCO,FCO,24/11/2020,10978162,"67,734.70",ONE SANSOME PROPERTY LLC,Multiple Accounts
FCO,FCO,02/11/2020,10949092,"67,494.18",FCDO POSTS,Funding Overseas Posts
FCO,FCO,13/11/2020,10964591,"67,050.00",MOTT MACDONALD LTD,Programme Spend (Oracle Projects Control Account)
FCO,FCO,26/11/2020,10980792,"66,996.91",BAE SYSTEMS APPLIED INTELLIGENCE LIMITED,IT Management and Change
FCO,FCO,04/11/2020,10951770,"66,986.27",HEALIX INTERNATIONAL LTD,Specialist Contractors
FCO,FCO,02/11/2020,10949081,"66,795.74",MERCY CORPS,Programme Spend (Oracle Projects Control Account)
FCO,FCO,19/11/2020,10971921,"66,756.01",COMPUTACENTER UK LTD,IT Support
FCO,FCO,02/11/2020,10949085,"66,718.39",FCDO POSTS,Funding Overseas Posts
FCO,FCO,18/11/2020,10969597,"66,543.06",THE BRITISH COUNCIL,Programme Spend (Oracle Projects Control Account)
FCO,FCO,24/11/2020,10977921,"66,496.00",HOME OFFICE,End User Software and Hardware
FCO,FCO,18/11/2020,10969896,"65,491.00",SAYARA INTERNATIONAL,Programme Spend (Oracle Projects Control Account)
FCO,FCO,02/11/2020,10949197,"65,362.70",FCDO POSTS,Funding Overseas Posts
FCO,FCO,24/11/2020,10978083,"65,277.74",DAI GLOBAL UK LTD,Programme Spend (Oracle Projects Control Account)
FCO,FCO,04/11/2020,10951563,"65,149.34",FCDO SERVICES,Additions-Assets Under Construction (Oracle PA Control Account)
FCO,FCO,10/11/2020,10959479,"64,477.61",CIVIC,Programme Spend (Oracle Projects Control Account)
FCO,FCO,17/11/2020,10967543,"64,076.64",FCDO SERVICES,Additions-Assets Under Construction (Oracle PA Control Account)
FCO,FCO,26/11/2020,10980805,"63,898.45",BAE SYSTEMS APPLIED INTELLIGENCE LIMITED,IT Management and Change
FCO,FCO,16/11/2020,10966212,"63,789.55",ITAD LTD,Programme Spend (Oracle Projects Control Account)
FCO,FCO,03/11/2020,10950100,"63,746.07",MADAD NGO,Programme Spend (Oracle Projects Control Account)
FCO,FCO,05/11/2020,10953656,"63,492.00",ATKINS LTD,Estates Management Services
FCO,FCO,16/11/2020,10966070,"63,465.49",ALBANY ASSOCIATES,Programme Spend (Oracle Projects Control Account)
FCO,FCO,12/11/2020,10962945,"63,308.31",FCDO POSTS,Funding Overseas Posts
FCO,FCO,16/11/2020,10966217,"63,305.13",FCDO SERVICES,Air Freight Dip Bags - Freight & Clearance Charges
FCO,FCO,30/11/2020,10984087,"63,052.00",MOTT MACDONALD LTD,Programme Spend (Oracle Projects Control Account)
FCO,FCO,30/11/2020,10984207,"63,006.69",PICKFORDS MOVE MANAGEMENT LTD,Heavy Baggage
FCO,FCO,05/11/2020,10953672,"63,000.00",ACCIPIO,Pilot Assessment Centre
FCO,FCO,23/11/2020,10976675,"62,808.49",INTERSERVE FM LTD,Multiple Accounts
FCO,FCO,13/11/2020,10964511,"62,527.00",THE AMERICAN UNIVERSITY IN CAIRO,Programme Spend (Oracle Projects Control Account)
FCO,FCO,02/11/2020,10949110,"62,063.62",FCDO POSTS,Funding Overseas Posts
FCO,FCO,30/11/2020,10984227,"61,589.90",PICKFORDS MOVE MANAGEMENT LTD,Heavy Baggage
FCO,FCO,23/11/2020,10976043,"61,448.36",WALSONS SERVICES PVT LTD,Local Guards
FCO,FCO,24/11/2020,10978072,"61,306.66",INSTITUTE FOR WAR AND PEACE REPORTING IWPR,Programme Spend (Oracle Projects Control Account)
FCO,FCO,24/11/2020,10978075,"61,028.96",INSTITUTE FOR WAR AND PEACE REPORTING IWPR,Programme Spend (Oracle Projects Control Account)
FCO,FCO,06/11/2020,10954905,"60,836.31",TEAM LEYLAND INTERNATIONAL LTD,Additions-Assets Under Construction (Oracle PA Control Account)
FCO,FCO,23/11/2020,10976782,"60,594.38",INTERSERVE FM LTD,Additions-Assets Under Construction (Oracle PA Control Account)
FCO,FCO,16/11/2020,10966089,"60,572.56",TETRA TECH INTERNATIONAL DEVELOPMENT,Programme Spend (Oracle Projects Control Account)
FCO,FCO,16/11/2020,10966091,"60,572.56",TETRA TECH INTERNATIONAL DEVELOPMENT,Programme Spend (Oracle Projects Control Account)
FCO,FCO,06/11/2020,10954967,"60,547.37",MAZARS CINOTTI ACCOUNTING DOO,Multiple Accounts
FCO,FCO,11/11/2020,10961087,"60,346.51",ULTA GROUP REALTY LTD,Additions-Assets Under Construction (Oracle PA Control Account)
FCO,FCO,20/11/2020,10973084,"60,270.11",AXIOM INTERNATIONAL LTD,Programme Spend (Oracle Projects Control Account)
FCO,FCO,13/11/2020,10964426,"60,262.36",AECOM,Additions-Assets Under Construction (Oracle PA Control Account)
FCO,FCO,20/11/2020,10973105,"59,911.20",FCDO SERVICES,Additions-Assets Under Construction (Oracle PA Control Account)
FCO,FCO,27/11/2020,10982284,"59,711.56",SENSETECH SYSTEMS,Additions-Assets Under Construction (Oracle PA Control Account)
FCO,FCO,20/11/2020,10973282,"59,541.85",BABCOCK VEHICLE ENGINEERING LTD,Additions-Assets Under Construction (Oracle PA Control Account)
FCO,FCO,26/11/2020,10980729,"59,300.17",MOTT MACDONALD LTD,Programme Spend (Oracle Projects Control Account)
FCO,FCO,13/11/2020,10964720,"59,257.80",FCDO SERVICES,IT Support
FCO,FCO,18/11/2020,10969840,"59,100.00",BUCKINGHAM PALACE SERVICES,Payments To Royal Household
FCO,FCO,13/11/2020,10964698,"58,668.39",FCDO SERVICES,IT Support
FCO,FCO,17/11/2020,10967761,"58,388.42",ISS FACILITY SERVICES LTD FCO OP,Multiple Accounts
FCO,FCO,30/11/2020,10984159,"58,365.00",CABINET OFFICE,Specialist Contractors
FCO,FCO,03/11/2020,10950243,"58,200.00",ROYAL BOTANIC GARDENS - KEW,Programme Spend (Oracle Projects Control Account)
FCO,FCO,19/11/2020,10971725,"57,887.34",BELASTINGDIENST CENTRALE ADMINISTRATIE TE APELDOORN,Multiple Accounts
FCO,FCO,20/11/2020,10973120,"57,729.96",ACCOUNTING SOLUTIONS,Multiple Accounts
FCO,FCO,30/11/2020,10984094,"57,630.00","AMMUNITION MANAGEMENT ADVISORY TEAM, GENEVA INTERNATIONAL CENTRE",Programme Spend (Oracle Projects Control Account)
FCO,FCO,20/11/2020,10973158,"57,222.58",ISS FACILITY SERVICES LTD FCO OP - POE,Multiple Accounts
FCO,FCO,23/11/2020,10976169,"57,126.60",WESTMINSTER FOUNDATION FOR DEMOCRACY,Programme Spend (Oracle Projects Control Account)
FCO,FCO,30/11/2020,10984053,"57,078.00",ROYAL UNITED SERVICES INSTITUTE FOR DEFENCE AND SECURITY STUDIES,Programme Spend (Oracle Projects Control Account)
FCO,FCO,20/11/2020,10973274,"56,945.00",TORCHLIGHT SOLUTIONS LTD,Programme Spend (Oracle Projects Control Account)
FCO,FCO,25/11/2020,10979801,"56,489.30",BUMBAS CONSTRUCTION,Programme Spend (Oracle Projects Control Account)
FCO,FCO,24/11/2020,10977860,"56,196.85",SSK,Multiple Accounts
FCO,FCO,25/11/2020,10979334,"56,175.98",AXIOM INTERNATIONAL LTD,Programme Spend (Oracle Projects Control Account)
FCO,FCO,02/11/2020,10948995,"56,010.00",FCDO SERVICES,Additions-Assets Under Construction (Oracle PA Control Account)
FCO,FCO,23/11/2020,10976111,"55,937.00",FCDO SERVICES,Additions-Assets Under Construction (Oracle PA Control Account)
FCO,FCO,04/11/2020,10951951,"55,910.83",H R OWEN DEALERSHIPS LIMITED,Protocol - General VAT Refunds to Other Organisations
FCO,FCO,13/11/2020,10964545,"55,883.91",RESTORE PLC,Specialist Contractors
FCO,FCO,19/11/2020,10972113,"55,878.66",ALFARDAN PREMIER MOTORS,Additions-Assets Under Construction (Oracle PA Control Account)
FCO,FCO,24/11/2020,10978208,"55,557.51",KPMG FIDUCIAIRE,Multiple Accounts
FCO,FCO,24/11/2020,10977870,"55,224.30",ACCOUNTING SOLUTIONS,Multiple Accounts
FCO,FCO,02/11/2020,10948954,"54,762.52",CONTROLLED BUILDING MEASURES LIMITED,Additions-Assets Under Construction (Oracle PA Control Account)
FCO,FCO,25/11/2020,10979171,"54,408.72",MINISTRY OF FINANCE,UK Guarding Contracts Overseas
FCO,FCO,02/11/2020,10949103,"54,305.66",FCDO POSTS,Funding Overseas Posts
FCO,FCO,19/11/2020,10971500,"53,650.00",TORCHLIGHT SOLUTIONS LTD,Programme Spend (Oracle Projects Control Account)
FCO,FCO,11/11/2020,10961242,"53,544.17",AXIOM INTERNATIONAL LTD,Programme Spend (Oracle Projects Control Account)
FCO,FCO,11/11/2020,10961210,"53,519.06",G4S SECURITY SERVICES KENYA LTD,Multiple Accounts
FCO,FCO,02/11/2020,10949146,"53,359.86",FCDO POSTS,Funding Overseas Posts
FCO,FCO,30/11/2020,10984120,"53,330.00",NORTH HIGHLAND UK LTD,IT/IS Consultancy
FCO,FCO,12/11/2020,10962761,"53,105.08",BRIGHT HORIZONS FAMILY SOLUTION LTD,FCO KCS Nursery
FCO,FCO,25/11/2020,10979399,"53,002.72",SISTEMA INTEGRADO MULTIPLE DE PAGOS,Multiple Accounts
FCO,FCO,17/11/2020,10967599,"52,975.02",SEARCH FOR COMMON GROUND,Programme Spend (Oracle Projects Control Account)
FCO,FCO,19/11/2020,10971917,"52,630.17",COMPUTACENTER UK LTD,IT Management and Change
FCO,FCO,09/11/2020,10957033,"52,505.82",AL BURHAN GROUP,Misc Security Payments
FCO,FCO,13/11/2020,10965134,"52,485.86",AUTO SUECO II AUTOMOVEIS,Additions-Assets Under Construction (Oracle PA Control Account)
FCO,FCO,26/11/2020,10980814,"52,137.54",JLL PROPERTY CONSULTANTS PTE LTD,Estates Management Services
FCO,FCO,23/11/2020,10976417,"52,107.24",TORCHLIGHTGROUP LIMITED,Programme Spend (Oracle Projects Control Account)
FCO,FCO,05/11/2020,10953151,"51,870.68",TOYOTA TSUSHO ASIA PACIFIC PTE LTD,Additions-Assets Under Construction (Oracle PA Control Account)
FCO,FCO,05/11/2020,10953154,"51,870.68",TOYOTA TSUSHO ASIA PACIFIC PTE LTD,Additions-Assets Under Construction (Oracle PA Control Account)
FCO,FCO,23/11/2020,10976847,"51,431.89",INTERSERVE FM LTD,Residential Property Services
FCO,FCO,17/11/2020,10967605,"51,000.00",PENAL REFORM INTERNATIONAL,Programme Spend (Oracle Projects Control Account)
FCO,FCO,26/11/2020,10980830,"50,980.00",FCDO SERVICES,Additions-Assets Under Construction (Oracle PA Control Account)
FCO,FCO,10/11/2020,10959635,"50,925.00",ACCOMMODATION PROVIDER,Rental Payments - residential
FCO,FCO,16/11/2020,10965936,"50,746.40",ALINEA INTERNATIONAL LIMITED,Programme Spend (Oracle Projects Control Account)
FCO,FCO,13/11/2020,10964796,"50,740.00",RAMBOLL UK LTD,Residential Property Services
FCO,FCO,02/11/2020,10949089,"50,426.69",FCDO POSTS,Funding Overseas Posts
FCO,FCO,02/11/2020,10949209,"50,425.95",FCDO POSTS,Funding Overseas Posts
FCO,FCO,04/11/2020,10951572,"50,390.89",FCDO SERVICES,IT Support
FCO,FCO,26/11/2020,10981075,"50,357.41",MEPITS SOLUTIONS,Programme Spend (Oracle Projects Control Account)
FCO,FCO,25/11/2020,10979425,"50,258.66",ADAM SMITH INTERNATIONAL,Programme Spend (Oracle Projects Control Account)
FCO,FCO,23/11/2020,10976508,"50,256.15",JONES LANG LASALLE,Multiple Accounts
FCO,FCO,13/11/2020,10964465,"50,220.45",WESTMINSTER FOUNDATION FOR DEMOCRACY,Programme Spend (Oracle Projects Control Account)
FCO,FCO,24/11/2020,10978044,"50,168.00",THE HALO TRUST,Programme Spend (Oracle Projects Control Account)
FCO,FCO,13/11/2020,10964456,"50,140.01",AMSS,Programme Spend (Oracle Projects Control Account)
FCO,FCO,05/11/2020,10953628,"49,830.00",AUGMENTAS GROUP LTD,Programme Spend (Oracle Projects Control Account)
FCO,FCO,04/11/2020,10951880,"49,767.31",ADAM SMITH INTERNATIONAL,Programme Spend (Oracle Projects Control Account)
FCO,FCO,10/11/2020,10959648,"49,536.25",TORCHLIGHT SOLUTIONS LTD,Programme Spend (Oracle Projects Control Account)
FCO,FCO,23/11/2020,10976427,"49,455.11",TRANSPARENCIA VENEZUELA AC,Programme Spend (Oracle Projects Control Account)
FCO,FCO,19/11/2020,10971885,"49,409.84",COMPUTACENTER UK LTD,Additions-Assets Under Construction (Oracle PA Control Account)
FCO,FCO,11/11/2020,10961076,"49,311.93",AXIOM INTERNATIONAL LTD,Programme Spend (Oracle Projects Control Account)
FCO,FCO,24/11/2020,10977858,"49,190.58",HEALIX INTERNATIONAL LTD,Hospital/Specialist Treatment
FCO,FCO,05/11/2020,10953400,"48,895.31",RANGER PROTECTION AND SECURITY COMPANY LTD,Local Guards
FCO,FCO,25/11/2020,10979431,"48,799.19",MINIMAL RISK CONSULTANCY LTD,Additions-Assets Under Construction (Oracle PA Control Account)
FCO,FCO,27/11/2020,10982249,"48,655.91",FCDO SERVICES,Additions-Assets Under Construction (Oracle PA Control Account)
FCO,FCO,17/11/2020,10967674,"48,592.97",ISS FACILITY SERVICES LTD FCO OP,Multiple Accounts
FCO,FCO,12/11/2020,10963590,"48,568.50",GROUNDTRUTH CONSULTING LTD,Training
FCO,FCO,17/11/2020,10967687,"48,530.21",ISS FACILITY SERVICES LTD FCO OP,Multiple Accounts
FCO,FCO,18/11/2020,10969890,"48,370.71",MERITAIN HEALTH,Multiple Accounts
FCO,FCO,10/11/2020,10959422,"48,195.49",BAE SYSTEMS APPLIED INTELLIGENCE LIMITED,IT Management and Change
FCO,FCO,02/11/2020,10949156,"48,012.27",ICTS ITALIA SRL,Local Guards
FCO,FCO,17/11/2020,10967645,"47,976.34",SECURITAS SAC,Local Guards
FCO,FCO,19/11/2020,10971447,"47,957.00",PALLADIUM,Programme Spend (Oracle Projects Control Account)
FCO,FCO,02/11/2020,10949180,"47,618.59",FCDO POSTS,Funding Overseas Posts
FCO,FCO,13/11/2020,10964772,"47,578.29",FCDO SERVICES,Air Freight Dip Bags - Freight & Clearance Charges
FCO,FCO,20/11/2020,10972747,"47,357.28",ALEXANDER FORBES LIFE,Multiple Accounts
FCO,FCO,02/11/2020,10949093,"46,547.71",FCDO POSTS,Funding Overseas Posts
FCO,FCO,26/11/2020,10981062,"46,536.07",DESIGN COLLABORATIVE,Programme Spend (Oracle Projects Control Account)
FCO,FCO,27/11/2020,10982222,"46,500.00",UNODC TUNIS,Programme Spend (Oracle Projects Control Account)
FCO,FCO,16/11/2020,10966065,"46,465.50",ALBANY ASSOCIATES,Programme Spend (Oracle Projects Control Account)
FCO,FCO,27/11/2020,10982225,"46,430.00",ASHLEY EDISON INTERNATIONAL LIMITED,Additions-Assets Under Construction (Oracle PA Control Account)
FCO,FCO,23/11/2020,10976762,"46,378.53",INTERSERVE FM LTD,Additions-Assets Under Construction (Oracle PA Control Account)
FCO,FCO,24/11/2020,10977975,"46,218.14",SOCIAL SECURITY CONTRIBTN AUTHORITY,Multiple Accounts
FCO,FCO,23/11/2020,10976328,"46,185.60",EDENRED,Multiple Accounts
FCO,FCO,24/11/2020,10977618,"45,969.33",CONTRIBUTORY PROVIDENT FUND,Multiple Accounts
FCO,FCO,12/11/2020,10962916,"45,771.92",FCDO POSTS,Funding Overseas Posts
FCO,FCO,25/11/2020,10979430,"45,683.00",ERNST AND YOUNG LLP,Programme Spend (Oracle Projects Control Account)
FCO,FCO,24/11/2020,10977802,"45,662.16",CAISSE CANTONALE GENEVOISE COMPEN,Multiple Accounts
FCO,FCO,10/11/2020,10959757,"45,461.92",Pace Construction,Programme Spend (Oracle Projects Control Account)
FCO,FCO,12/11/2020,10963292,"45,447.72",ACCOMMODATION PROVIDER,Rental Payments - residential
FCO,FCO,24/11/2020,10977812,"45,429.08",SSK,Multiple Accounts
FCO,FCO,17/11/2020,10967718,"45,236.07",ISS FACILITY SERVICES LTD FCO OP,Multiple Accounts
FCO,FCO,02/11/2020,10949147,"45,220.22",FCDO POSTS,Funding Overseas Posts
FCO,FCO,02/11/2020,10949149,"45,220.22",FCDO POSTS,Funding Overseas Posts
FCO,FCO,02/11/2020,10949327,"45,220.22",CONNECTED INTELLIGENCE LIMITED,Programme Spend (Oracle Projects Control Account)
FCO,FCO,06/11/2020,10954408,"45,093.10",DIPLOMAT FREIGHT SERVICES LTD(DFS),Multiple Accounts
FCO,FCO,10/11/2020,10959266,"45,000.00",JOHN SMITH MEMORIAL TRUST,Programme Spend (Oracle Projects Control Account)
FCO,FCO,09/11/2020,10957094,"44,882.57",AETNA,Multiple Accounts
FCO,FCO,25/11/2020,10979528,"44,777.13",A T & T MOBILITY,Multiple Accounts
FCO,FCO,24/11/2020,10978531,"44,727.11",BEDER,Programme Spend (Oracle Projects Control Account)
FCO,FCO,23/11/2020,10976832,"44,629.57",INTERSERVE FM LTD,Residential Property Services
FCO,FCO,11/11/2020,10961177,"44,591.06",ALBANY ASSOCIATES,Programme Spend (Oracle Projects Control Account)
FCO,FCO,03/11/2020,10950033,"44,491.16",ECONOMIC POLICY RESEARCH CENTER,Programme Spend (Oracle Projects Control Account)
FCO,FCO,02/11/2020,10949101,"44,220.33",FCDO POSTS,Funding Overseas Posts
FCO,FCO,13/11/2020,10964629,"43,893.71",IMSS,Multiple Accounts
FCO,FCO,10/11/2020,10959456,"43,683.12",BAE SYSTEMS APPLIED INTELLIGENCE LIMITED,IT Management and Change
FCO,FCO,30/11/2020,10984178,"43,630.63",IIZUKA,IT Hosting
FCO,FCO,25/11/2020,10979388,"43,560.00",ERNST AND YOUNG LLP,Programme Spend (Oracle Projects Control Account)
FCO,FCO,20/11/2020,10972853,"43,531.08",DISCOVERY MEDICAL AID,Multiple Accounts
FCO,FCO,11/11/2020,10961160,"43,516.00",INSTITUT FRANCAIS,Language Tuition: Essential
FCO,FCO,25/11/2020,10979920,"43,325.70",EDUCATION FOR EMPLOYMENT,Programme Spend (Oracle Projects Control Account)
FCO,FCO,23/11/2020,10976507,"43,244.56",ACCOMMODATION PROVIDER,Multiple Accounts
FCO,FCO,09/11/2020,10957356,"43,100.00",BRITISH AIRWAYS PLC,Post - Air Travel
FCO,FCO,19/11/2020,10971211,"42,940.25",HARIS ENTERPRISES PVT LTD,Local Guards
FCO,FCO,09/11/2020,10959059,"42,926.23",ACCOMMODATION PROVIDER,Rental Payments - residential
FCO,FCO,13/11/2020,10964715,"42,483.87",FCDO SERVICES,IT Support
FCO,FCO,12/11/2020,10963619,"42,466.50",BRITISH RED CROSS,Consular Crisis Expenditure
FCO,FCO,25/11/2020,10979373,"42,294.00",WESTMINSTER CITY COUNCIL,Rates Taxes Non-Residential
FCO,FCO,19/11/2020,10971830,"42,236.59",TRESOR PUBLIC,Multiple Accounts
FCO,FCO,25/11/2020,10979321,"42,000.00",FCDO SERVICES,Additions-Assets Under Construction (Oracle PA Control Account)
FCO,FCO,02/11/2020,10949100,"41,730.02",FCDO POSTS,Funding Overseas Posts
FCO,FCO,12/11/2020,10963365,"41,702.90",DEPARTMENT OF FOREIGN AFFAIRS,DBNs - Payments at Post made against UTR Form
FCO,FCO,09/11/2020,10957196,"41,664.51",BAE SYSTEMS APPLIED INTELLIGENCE LIMITED,IT Management and Change
FCO,FCO,10/11/2020,10959288,"41,637.46",KAINOS SOFTWARE LTD,Additions-Assets Under Construction (Oracle PA Control Account)
FCO,FCO,23/11/2020,10976792,"41,622.34",INTERSERVE FM LTD,Multiple Accounts
FCO,FCO,04/11/2020,10952586,"41,520.79",PAGE GROUP ISRAEL LIMITED,Local Guards
FCO,FCO,17/11/2020,10967662,"41,503.56",ISS FACILITY SERVICES LTD FCO OP,Multiple Accounts
FCO,FCO,19/11/2020,10971512,"41,388.20",GOVERNMENT LEGAL DEPARTMENT,Legal Consultancy
FCO,FCO,17/11/2020,10967592,"41,000.00",RAMBOLL UK LTD,Residential Property Services
FCO,FCO,23/11/2020,10976672,"40,971.29",INTERSERVE FM LTD,Security: Works Non-Residential
FCO,FCO,09/11/2020,10956938,"40,705.99",G4S SECURE SOLUTIONS INT JORDAN,Local Guards
FCO,FCO,13/11/2020,10964470,"40,631.21",WESTMINSTER FOUNDATION FOR DEMOCRACY,Programme Spend (Oracle Projects Control Account)
FCO,FCO,03/11/2020,10950149,"40,548.00",UNDP CONTRIBUTIONS,Programme Spend (Oracle Projects Control Account)
FCO,FCO,10/11/2020,10959299,"40,437.97",CAPGEMINI UK PLC,IT/IS Consultancy
FCO,FCO,09/11/2020,10957762,"40,349.10",SCHOOL,Schooling for Children at Post
FCO,FCO,20/11/2020,10973119,"40,185.45",FCDO SERVICES,IT Hosting
FCO,FCO,24/11/2020,10977874,"40,180.14",JORDAN ELECTRIC POWER CO,Multiple Accounts
FCO,FCO,09/11/2020,10959056,"40,129.26",FOUNDATION PROPERTY MANAGEMENT LLC,Multiple Accounts
FCO,FCO,06/11/2020,10954939,"40,000.00",KINGS COLLEGE LONDON,Training Courses
FCO,FCO,20/11/2020,10973102,"40,000.00",FCDO SERVICES,Additions-Assets Under Construction (Oracle PA Control Account)
FCO,FCO,24/11/2020,10977816,"40,000.00",FCDO SERVICES,Additions-Assets Under Construction (Oracle PA Control Account)
FCO,FCO,25/11/2020,10979432,"39,951.60",ERNST AND YOUNG LLP,Programme Spend (Oracle Projects Control Account)
FCO,FCO,02/11/2020,10949211,"39,945.56",FCDO POSTS,Funding Overseas Posts
FCO,FCO,10/11/2020,10959506,"39,868.25",BAE SYSTEMS APPLIED INTELLIGENCE LIMITED,IT Management and Change
FCO,FCO,23/11/2020,10976334,"39,868.25",BAE SYSTEMS APPLIED INTELLIGENCE LIMITED,IT Management and Change
FCO,FCO,12/11/2020,10963588,"39,797.97",JOURNALISM DEVELOPMENT NETWORK,Programme Spend (Oracle Projects Control Account)
FCO,FCO,21/11/2020,10974798,"39,773.05",BMATT,Recharge Suspense Account (Oracle PA Control Account)
FCO,FCO,25/11/2020,10980415,"39,665.63",NEW ERA OIL AND GAS,Fuel Oil Residential
FCO,FCO,05/11/2020,10953169,"39,565.55",ACCL INTERNATIONAL KABUL,Fuel Oil Residential
FCO,FCO,27/11/2020,10982371,"39,551.79",ACCOMMODATION PROVIDER,Multiple Accounts
FCO,FCO,12/11/2020,10962732,"39,445.05",DX NETWORK SERVICES,Postal Services
FCO,FCO,16/11/2020,10966061,"39,435.64",ADVICE ON INDIVIDUAL RIGHTS IN EUROPE,Programme Spend (Oracle Projects Control Account)
FCO,FCO,30/11/2020,10984281,"39,243.73",ICTS ITALIA SRL,Local Guards
FCO,FCO,03/11/2020,10950863,"39,100.08",ACCOMMODATION PROVIDER,Rental Payments - residential
FCO,FCO,16/11/2020,10966075,"39,000.00",LINKLATERS LLP,Training
FCO,FCO,30/11/2020,10984203,"38,956.53",PORSCHE INTER AUTO DOO POSLOVNICA,Additions-Assets Under Construction (Oracle PA Control Account)
FCO,FCO,30/11/2020,10984090,"38,900.00",MOTT MACDONALD LTD,Programme Spend (Oracle Projects Control Account)
FCO,FCO,05/11/2020,10953924,"38,773.57",JCLEC FOUNDATION,Programme Spend (Oracle Projects Control Account)
FCO,FCO,11/11/2020,10962526,"38,368.92",FREE FIELDS FOUNDATION,Programme Spend (Oracle Projects Control Account)
FCO,FCO,25/11/2020,10979820,"38,200.54",STANTEC CONSULTING INTL LTD,Programme Spend (Oracle Projects Control Account)
FCO,FCO,04/11/2020,10951744,"38,198.51",G4S SECURE SOLUTIONS,Local Guards
FCO,FCO,06/11/2020,10954697,"38,000.00",ORGANIZATION FOR SECURITY AND CO-OPERATION IN EUROPE,Programme Spend (Oracle Projects Control Account)
FCO,FCO,11/11/2020,10961050,"37,956.56",WEPRO,Recharge Suspense Account (Oracle PA Control Account)
FCO,FCO,03/11/2020,10950165,"37,866.99",MINISTRY OF DEFENCE,Recharge Suspense Account (Oracle PA Control Account)
FCO,FCO,30/11/2020,10984274,"37,837.73",FCDO SERVICES,Construction Project more than 10k
FCO,FCO,19/11/2020,10972037,"37,695.42",WILLIS TOWERS WATSON SOUTHEAST INC,Multiple Accounts
FCO,FCO,20/11/2020,10973125,"37,562.63",FCDO SERVICES,IT Support
FCO,FCO,24/11/2020,10978249,"37,532.99",G4S SECURITY SERVICES UGANDA LTD,Local Guards
FCO,FCO,05/11/2020,10953606,"37,507.77",MAYORS OFFICE FOR POLICING AND CRIME MOPC,Programme Spend (Oracle Projects Control Account)
FCO,FCO,11/11/2020,10962548,"37,435.20",ACCOMMODATION PROVIDER,Rental Payments - residential
FCO,FCO,25/11/2020,10979261,"37,359.04",ITAD LTD,Programme Spend (Oracle Projects Control Account)
FCO,FCO,26/11/2020,10981327,"37,257.56",ARAB AMERICAN UNIVERSITY,Recharge Suspense Account (Oracle PA Control Account)
FCO,FCO,17/11/2020,10967694,"37,033.57",ISS FACILITY SERVICES LTD FCO OP,Multiple Accounts
FCO,FCO,24/11/2020,10977621,"37,000.00",UNDP MULTI COUNTRY OFFICE,GH/VIP Grant in Aid
FCO,FCO,09/11/2020,10957166,"36,928.00",THE AIRE CENTRE,Programme Spend (Oracle Projects Control Account)
FCO,FCO,05/11/2020,10953215,"36,914.74",EDF ENERGY,Electricity Non-Residential
FCO,FCO,25/11/2020,10979305,"36,865.74",ZINC NETWORK LIMITED,Programme Spend (Oracle Projects Control Account)
FCO,FCO,01/11/2020,10946459,"36,650.00",ROYAL UNITED SERVICES INSTITUTE FOR DEFENCE AND SECURITY STUDIES,Programme Spend (Oracle Projects Control Account)
FCO,FCO,03/11/2020,10950153,"36,646.48",UNION MOTORS LTD,Additions-Assets Under Construction (Oracle PA Control Account)
FCO,FCO,19/11/2020,10971439,"36,617.53",G4S SECURITY SERVICE DRC SPRL,Local Guards
FCO,FCO,17/11/2020,10967800,"36,501.77",MINISTERIO DAS FINANCAS AT,Multiple Accounts
FCO,FCO,19/11/2020,10972117,"36,393.45",JORDAN MODERN OIL AND FUEL SERVICES,Multiple Accounts
FCO,FCO,03/11/2020,10982629,"36,326.86",THE ROYAL BANK OF SCOTLAND,Travel Package Advance Overseas Posting (Credit Card Payments Only)
FCO,FCO,12/11/2020,10963527,"36,295.96",ALLEN VANGUARD LTD,Technical Supplies (Maint)
FCO,FCO,02/11/2020,10949216,"36,277.49",FCDO POSTS,Funding Overseas Posts
FCO,FCO,02/11/2020,10949213,"36,269.18",FCDO POSTS,Funding Overseas Posts
FCO,FCO,04/11/2020,10952422,"36,079.00",ASSABEL,Programme Spend (Oracle Projects Control Account)
FCO,FCO,17/11/2020,10967753,"36,058.62",ISS FACILITY SERVICES LTD FCO OP,Multiple Accounts
FCO,FCO,04/11/2020,10951726,"36,000.00",THE SIWA GROUP,Training Courses
FCO,FCO,13/11/2020,10964949,"35,920.03",BRICKELL BAY TOWER LTD,Multiple Accounts
FCO,FCO,10/11/2020,10959417,"35,682.94",TORCHLIGHT SOLUTIONS LTD,Programme Spend (Oracle Projects Control Account)
FCO,FCO,25/11/2020,10979742,"35,589.60",PILGRIMS AFRICA LTD,Local Guards
FCO,FCO,20/11/2020,10973095,"35,505.00",FCDO SERVICES,IT Hosting
FCO,FCO,10/11/2020,10959095,"35,395.92",ACCOMMODATION PROVIDER,Rental Payments - residential
FCO,FCO,26/11/2020,10981863,"35,377.64",JINNAH INSTITUTE,Programme Spend (Oracle Projects Control Account)
FCO,FCO,16/11/2020,10965975,"35,298.68",ACCOMMODATION PROVIDER,Multiple Accounts
FCO,FCO,09/11/2020,10957219,"35,269.56",SECRETARY NDMC NEW DELHI,Multiple Accounts
FCO,FCO,13/11/2020,10964425,"35,227.00",EGYPTIAN CENTER FOR ECONOMIC STUDIES,Programme Spend (Oracle Projects Control Account)
FCO,FCO,02/11/2020,10949015,"35,200.53",PICKFORDS MOVE MANAGEMENT LTD,Unaccompanied Air Freight
FCO,FCO,02/11/2020,10949000,"35,188.73",PICKFORDS MOVE MANAGEMENT LTD,Unaccompanied Air Freight
FCO,FCO,09/11/2020,10957334,"35,066.72",WORLD HEALTH ORGANISATION,Programme Spend (Oracle Projects Control Account)
FCO,FCO,03/11/2020,10950445,"35,000.00",FCDO SERVICES,Additions-Assets Under Construction (Oracle PA Control Account)
FCO,FCO,04/11/2020,10951579,"35,000.00",NGU FOUNDATION FOR SUPPORT OF REFORMS IN UKRAINE,Recharge Suspense Account (Oracle PA Control Account)
FCO,FCO,18/11/2020,10969897,"34,910.78",ACCOMMODATION PROVIDER,Rental Payments - residential
FCO,FCO,02/11/2020,10949098,"34,695.50",FCDO POSTS,Funding Overseas Posts
FCO,FCO,02/11/2020,10949094,"34,678.04",FCDO POSTS,Funding Overseas Posts
FCO,FCO,09/11/2020,10957539,"34,648.95",GOVERNMENT OF ANGUILLA,Programme Spend (Oracle Projects Control Account)
FCO,FCO,24/11/2020,10977662,"34,612.50",SOCIAL INSURANCE ORGANISATION,Multiple Accounts
FCO,FCO,13/11/2020,10964562,"34,369.60",COMPUTACENTER UK LTD,IT Management and Change
FCO,FCO,25/11/2020,10979874,"34,302.81",THE ROYAL BANK OF SCOTLAND,Multiple Accounts
FCO,FCO,17/11/2020,10967616,"34,296.04",TETRA TECH INTERNATIONAL DEVELOPMENT,Programme Spend (Oracle Projects Control Account)
FCO,FCO,16/11/2020,10966201,"34,254.49",FCDO SERVICES,Air Freight Dip Bags - Freight & Clearance Charges
FCO,FCO,27/11/2020,10982243,"34,254.49",FCDO SERVICES,Air Freight Dip Bags - Freight & Clearance Charges
FCO,FCO,11/11/2020,10961086,"34,250.90",ULTA GROUP REALTY LTD,Additions-Assets Under Construction (Oracle PA Control Account)
FCO,FCO,27/11/2020,10982119,"34,236.52",AFIP,Multiple Accounts
FCO,FCO,19/11/2020,10972090,"34,150.00",DFID DEPT INTERNATIONAL DEVELOPMENT,Programme Spend (Oracle Projects Control Account)
FCO,FCO,02/11/2020,10949204,"34,090.67",FCDO POSTS,Funding Overseas Posts
FCO,FCO,10/11/2020,10959369,"34,057.76",BAE SYSTEMS APPLIED INTELLIGENCE LIMITED,IT Management and Change
FCO,FCO,23/11/2020,10976215,"33,854.53",IBTC PENSION MANAGERS LTD,Multiple Accounts
FCO,FCO,30/11/2020,10984245,"33,671.95",PICKFORDS MOVE MANAGEMENT LTD,Heavy Baggage
FCO,FCO,13/11/2020,10964475,"33,653.98",WESTMINSTER FOUNDATION FOR DEMOCRACY,Programme Spend (Oracle Projects Control Account)
FCO,FCO,18/11/2020,10969772,"33,558.00",RSM RISK ASSURANCE SERVICES LLP,Specialist Contractors
FCO,FCO,16/11/2020,10965964,"33,529.05",ETIHAD TOWERS FOR REAL ESTATE,Multiple Accounts
FCO,FCO,06/11/2020,10954581,"33,397.98",CELLEBRITE ASIA PACIFIC PTE LTD,Programme Spend (Oracle Projects Control Account)
FCO,FCO,16/11/2020,10966216,"33,350.95",FCDO SERVICES,Unaccompanied Air Freight
FCO,FCO,03/11/2020,10950023,"33,290.06",ACCOMMODATION PROVIDER,Rental Payments - residential
FCO,FCO,24/11/2020,10977634,"33,196.21",CONTRIBUTORY PROVIDENT FUND,Recharge Suspense Account (Oracle PA Control Account)
FCO,FCO,02/11/2020,10949032,"33,003.37",IBTC PENSION MANAGERS LTD,Multiple Accounts
FCO,FCO,11/11/2020,10961169,"33,000.00",INTER MEDIATE,Programme Spend (Oracle Projects Control Account)
FCO,FCO,26/11/2020,10980958,"32,900.00",JOSHUA PAUL MELTZER,Training
FCO,FCO,23/11/2020,10976779,"32,886.99",INTERSERVE FM LTD,FM Interserve Estate Management Services
FCO,FCO,13/11/2020,10964754,"32,835.93",IZIIS,Rental Payments - non residential
FCO,FCO,04/11/2020,10952958,"32,807.14",AL MALKI REAL ESTATE,Rental Payments - residential
FCO,FCO,04/11/2020,10951749,"32,717.00",SSAFA THE ARMED FORCES CHARITY,Programme Spend (Oracle Projects Control Account)
FCO,FCO,03/11/2020,10950047,"32,661.95",ACCOMMODATION PROVIDER,Multiple Accounts
FCO,FCO,19/11/2020,10972632,"32,583.40",ACCOMMODATION PROVIDER,Rental Payments - residential
FCO,FCO,23/11/2020,10977053,"32,583.40",ACCOMMODATION PROVIDER,Rental Payments - residential
FCO,FCO,04/11/2020,10952960,"32,520.99",EBRAHIM KHALIL KANOO BSC,"Vehicle Purchases Below 10,000"
FCO,FCO,23/11/2020,10976687,"32,514.69",INTERSERVE FM LTD,Multiple Accounts
FCO,FCO,04/11/2020,10951900,"32,369.80",COMPUTACENTER UK LTD,Additions-Assets Under Construction (Oracle PA Control Account)
FCO,FCO,04/11/2020,10952279,"32,319.60",UNDP CONTRIBUTIONS,Programme Spend (Oracle Projects Control Account)
FCO,FCO,04/11/2020,10951860,"32,031.25",TODD RESEARCH LTD,Other Machinery and Equipment
FCO,FCO,26/11/2020,10980884,"32,031.25",TODD RESEARCH LTD,Other Machinery and Equipment
FCO,FCO,09/11/2020,10957291,"32,028.00",COMPUTACENTER UK LTD,IT/IS Consultancy
FCO,FCO,17/11/2020,10967547,"31,870.29",FCDO SERVICES,Other Machinery and Equipment
FCO,FCO,16/11/2020,10965971,"31,839.40",ETIHAD TOWERS FOR REAL ESTATE,Multiple Accounts
FCO,FCO,16/11/2020,10966224,"31,837.23",FCDO SERVICES,Air Freight Dip Bags - Freight & Clearance Charges
FCO,FCO,26/11/2020,10980865,"31,756.80",FCDO SERVICES,Construction Project more than 10k
FCO,FCO,23/11/2020,10976161,"31,659.00",SUDO UK,Programme Spend (Oracle Projects Control Account)
FCO,FCO,12/11/2020,10963618,"31,636.10",BAE SYSTEMS APPLIED INTELLIGENCE LIMITED,IT Management and Change
FCO,FCO,20/11/2020,10972976,"31,488.30",CENTRAL PROVIDENT FUND BOARD,Multiple Accounts
FCO,FCO,18/11/2020,10969636,"31,485.31",SCHOOL,Multiple Accounts
FCO,FCO,23/11/2020,10976763,"31,146.02",INTERSERVE FM LTD,FM Interserve Works
FCO,FCO,03/11/2020,10950427,"31,071.50",FCDO SERVICES,IT Support
FCO,FCO,12/11/2020,10962914,"31,031.81",FCDO POSTS,Funding Overseas Posts
FCO,FCO,09/11/2020,10957026,"31,028.92",KINGDOM CITY,Rental Payments - residential
FCO,FCO,10/11/2020,10959196,"30,776.14",SAUDI REAL ESTATE COMPANY,Multiple Accounts
FCO,FCO,16/11/2020,10966494,"30,721.49",ACCOMMODATION PROVIDER,Rental Payments - residential
FCO,FCO,19/11/2020,10971464,"30,711.87",FCDO SERVICES,IT Support
FCO,FCO,24/11/2020,10978014,"30,666.24",HEALIX INTERNATIONAL LTD,Specialist Contractors
FCO,FCO,23/11/2020,10976117,"30,607.85",ACCOMMODATION PROVIDER,Multiple Accounts
FCO,FCO,12/11/2020,10962634,"30,592.59",G4S SECURITY SERVICES,Local Guards
FCO,FCO,26/11/2020,10980857,"30,431.78",FCDO SERVICES,Additions-Assets Under Construction (Oracle PA Control Account)
FCO,FCO,18/11/2020,10969898,"30,247.00",SAYARA INTERNATIONAL,Programme Spend (Oracle Projects Control Account)
FCO,FCO,10/11/2020,10959319,"30,191.19",HALA SYSTEMS INC,Programme Spend (Oracle Projects Control Account)
FCO,FCO,16/11/2020,10965962,"30,149.75",ETIHAD TOWERS FOR REAL ESTATE,Multiple Accounts
FCO,FCO,16/11/2020,10965984,"30,124.40",ALDAR PROPERTIES PJSC,Rental Payments - residential
FCO,FCO,19/11/2020,10972723,"30,121.92",NCA LAGOS,Recharge Suspense Account (Oracle PA Control Account)
FCO,FCO,27/11/2020,10982619,"30,121.92",WHITEHALL FUNDING,Recharge Suspense Account (Oracle PA Control Account)
FCO,FCO,06/11/2020,10954671,"30,061.88",ATALIAN SERVEST,Misc Security Payments
FCO,FCO,25/11/2020,10979811,"30,054.00",Pace Construction,Programme Spend (Oracle Projects Control Account)
FCO,FCO,17/11/2020,10967632,"30,000.00",UNITED NATIONS,Programme Spend (Oracle Projects Control Account)
FCO,FCO,27/11/2020,10982494,"29,811.20",MITEL NETWORKS LTD,Additions-Assets Under Construction (Oracle PA Control Account)
FCO,FCO,04/11/2020,10952058,"29,780.61",ACCOMMODATION PROVIDER,Rental Payments - residential
FCO,FCO,11/11/2020,10961796,"29,743.47",ENECO BELGIUM NV,Multiple Accounts
FCO,FCO,23/11/2020,10976327,"29,736.23",HEALTH AUTHORITY OF ANGUILLA,Programme Spend (Oracle Projects Control Account)
FCO,FCO,16/11/2020,10965978,"29,727.33",ETIHAD TOWERS FOR REAL ESTATE,Multiple Accounts
FCO,FCO,16/11/2020,10966123,"29,703.00",IOM INTERNATIONAL ORG FOR MIGRATION,Programme Spend (Oracle Projects Control Account)
FCO,FCO,20/11/2020,10973201,"29,695.71",FCDO POSTS,Funding Overseas Posts
FCO,FCO,24/11/2020,10977989,"29,661.50",THE BRITISH COUNCIL,Programme Spend (Oracle Projects Control Account)
FCO,FCO,23/11/2020,10976790,"29,578.26",INTERSERVE FM LTD,Construction Project more than 10k
FCO,FCO,26/11/2020,10980741,"29,500.00",PRISONERS ABROAD,Human Rights : Prisoners
FCO,FCO,03/11/2020,10950475,"29,494.52",MOD MINISTRY OF DEFENCE,Multiple Accounts
FCO,FCO,11/11/2020,10961302,"29,466.06",MOD MINISTRY OF DEFENCE,Multiple Accounts
FCO,FCO,24/11/2020,10977915,"29,319.50",PROFESSIONAL LANGUAGE SOLUTIONS,Language Tuition: Essential
FCO,FCO,10/11/2020,10959241,"29,310.38",R D CONSTRUCTION PVT LTD,Unscheduled repairs to building infrastructure
FCO,FCO,03/11/2020,10950344,"29,274.54",SAUDI CONSOLIDATED ELECTRIC CO,Electricity Non-Residential
FCO,FCO,05/11/2020,10953754,"29,270.94",AVARN SECURITY OY,Local Guards
FCO,FCO,23/11/2020,10976766,"29,199.23",INTERSERVE FM LTD,Additions-Assets Under Construction (Oracle PA Control Account)
FCO,FCO,18/11/2020,10969781,"29,093.04",ADAM SMITH INTERNATIONAL,Programme Spend (Oracle Projects Control Account)
FCO,FCO,02/11/2020,10949193,"29,000.00",FCDO POSTS,Funding Overseas Posts
FCO,FCO,23/11/2020,10976673,"28,999.39",INTERSERVE FM LTD,Multiple Accounts
FCO,FCO,16/11/2020,10966040,"28,859.58",Q PARK LIMITED,Rental Payments - residential
FCO,FCO,16/11/2020,10966043,"28,859.58",Q PARK LIMITED,Rental Payments - residential
FCO,FCO,26/11/2020,10981876,"28,829.70",NATIONAL INVESTMENT CORP PJSC,Multiple Accounts
FCO,FCO,11/11/2020,10961092,"28,800.00",INTER MEDIATE,Programme Spend (Oracle Projects Control Account)
FCO,FCO,20/11/2020,10973090,"28,779.50",ITAD LTD,Programme Spend (Oracle Projects Control Account)
FCO,FCO,10/11/2020,10959612,"28,760.60",BAE SYSTEMS APPLIED INTELLIGENCE LIMITED,IT/IS Consultancy
FCO,FCO,24/11/2020,10978305,"28,729.14",KPMG FIDUCIAIRE,Multiple Accounts
FCO,FCO,16/11/2020,10965967,"28,692.42",ETIHAD TOWERS FOR REAL ESTATE,Multiple Accounts
FCO,FCO,02/11/2020,10949028,"28,647.68",PICKFORDS MOVE MANAGEMENT LTD,Unaccompanied Air Freight
FCO,FCO,17/11/2020,10967464,"28,646.73",UNMCK,Recharge Suspense Account (Oracle PA Control Account)
FCO,FCO,04/11/2020,10951940,"28,624.73",ASR LEVENSVERZEKERING NV,Multiple Accounts
FCO,FCO,27/11/2020,10981941,"28,579.99",SOCIAL SECURITY CORPORATION,Multiple Accounts
FCO,FCO,23/11/2020,10976825,"28,490.98",INTERSERVE FM LTD,FM Interserve Works
FCO,FCO,25/11/2020,10979391,"28,468.19",MITEL NETWORKS LTD,IT Networking
FCO,FCO,10/11/2020,10959465,"28,407.79",BAE SYSTEMS APPLIED INTELLIGENCE LIMITED,Specialist Contractors
FCO,FCO,26/11/2020,10980997,"28,383.30",XOREX DE COLOMBIA SAS,Recharge Suspense Account (Oracle PA Control Account)
FCO,FCO,16/11/2020,10966346,"28,169.05",ONG NGBOADO,Programme Spend (Oracle Projects Control Account)
FCO,FCO,12/11/2020,10963389,"28,115.00",REVEALING REALITY (ESRO),Research Budget
FCO,FCO,19/11/2020,10971467,"28,094.69",WESTMINSTER FOUNDATION FOR DEMOCRACY,Programme Spend (Oracle Projects Control Account)
FCO,FCO,26/11/2020,10981323,"28,047.32",CONTAINER BOX,Recharge Suspense Account (Oracle PA Control Account)
FCO,FCO,03/11/2020,10950210,"27,976.62",ECORYS UK LTD,Programme Spend (Oracle Projects Control Account)
FCO,FCO,27/11/2020,10983166,"27,943.29",SAFEGUARD ALARMS PVT LTD,Local Guards
FCO,FCO,26/11/2020,10981324,"27,799.84",WEPRO,Recharge Suspense Account (Oracle PA Control Account)
FCO,FCO,01/11/2020,10913798,"27,746.25",FCDO SERVICES,Postal Services
FCO,FCO,23/11/2020,10976765,"27,702.98",INTERSERVE FM LTD,Additions-Assets Under Construction (Oracle PA Control Account)
FCO,FCO,20/11/2020,10972902,"27,541.79",SCHOOL,Multiple Accounts
FCO,FCO,23/11/2020,10976337,"27,500.00",COLLIERS,Estates Management Services
FCO,FCO,10/11/2020,10959462,"27,461.07",BAE SYSTEMS APPLIED INTELLIGENCE LIMITED,IT Management and Change
FCO,FCO,11/11/2020,10961216,"27,451.00",CABINET OFFICE,Programme Spend (Oracle Projects Control Account)
FCO,FCO,27/11/2020,10982054,"27,450.52",ICEA LION,Multiple Accounts
FCO,FCO,24/11/2020,10977809,"27,414.54",FCDO SERVICES,IT/IS Consultancy
FCO,FCO,18/11/2020,10969794,"27,397.22",FCDO SERVICES,IT Management and Change
FCO,FCO,18/11/2020,10969839,"27,344.00",NEW YORK UNIVERSITY CENTER ON INTERNATIONAL COOPERATION,Programme Spend (Oracle Projects Control Account)
FCO,FCO,09/11/2020,10957151,"27,316.46",AETNA,Multiple Accounts
FCO,FCO,24/11/2020,10978315,"27,288.80",KPMG FIDUCIAIRE,Multiple Accounts
FCO,FCO,25/11/2020,10979204,"27,284.52",UNICEF GLOBAL SHARED SERVICE CENTRE,Programme Spend (Oracle Projects Control Account)
FCO,FCO,09/11/2020,10957052,"27,166.17",BRITISH CONSULATE GENERAL JERUSALEM,Multiple Accounts
FCO,FCO,02/11/2020,10949107,"27,152.83",FCDO POSTS,Funding Overseas Posts
FCO,FCO,09/11/2020,10957015,"26,997.67",RED SEA AUTOMOTIVE FZCO,Additions-Assets Under Construction (Oracle PA Control Account)
FCO,FCO,02/11/2020,10949088,"26,904.58",FCDO POSTS,Funding Overseas Posts
FCO,FCO,06/11/2020,10954989,"26,839.51",PAGUE BOLETO LTDA,Rates Taxes Residential
FCO,FCO,19/11/2020,10972015,"26,723.45",CASA DO LAGO PARTICIPA��ES LTDA,Multiple Accounts
FCO,FCO,02/11/2020,10949072,"26,562.00",MACE INTERNATIONAL UK LIMITED,Additions-Assets Under Construction (Oracle PA Control Account)
FCO,FCO,05/11/2020,10953735,"26,552.81",SOT 161,Multiple Accounts
FCO,FCO,05/11/2020,10954050,"26,532.20",ACCOMMODATION PROVIDER,Rental Payments - residential
FCO,FCO,26/11/2020,10980842,"26,493.99",FCDO SERVICES,Construction Project more than 10k
FCO,FCO,12/11/2020,10962738,"26,486.00",GILBERT ASH LIMITED,Additions-Assets Under Construction (Oracle PA Control Account)
FCO,FCO,20/11/2020,10972861,"26,446.27",LIFE INSURANCE CORPORATION OF INDIA,Multiple Accounts
FCO,FCO,13/11/2020,10964276,"26,377.04",TOYOTA TSUSHO ASIA PACIFIC PTE LTD,Additions-Assets Under Construction (Oracle PA Control Account)
FCO,FCO,02/11/2020,10949219,"26,339.41",SH COMPANY SA DE CV,Repairs And Refurbishment: Works Residential
FCO,FCO,04/11/2020,10951592,"26,336.67",MANUFACTURERS LIFEINSURANCE COMPANY,Multiple Accounts
FCO,FCO,23/11/2020,10976659,"26,330.98",INTERSERVE FM LTD,Multiple Accounts
FCO,FCO,26/11/2020,10980769,"26,265.00",FCDO SERVICES,IT Management and Change
FCO,FCO,19/11/2020,10971374,"26,166.16",BHC INDIA STAFF PROVIDENT FUND,Recharge Suspense Account (Oracle PA Control Account)
FCO,FCO,18/11/2020,10970195,"26,137.29",DICKRAN OUZOUNIAN CO LTD,Additions-Assets Under Construction (Oracle PA Control Account)
FCO,FCO,25/11/2020,10979176,"26,112.44",AUSTRALIAN EMBASSY JAKARTA,Rental Payments - non residential
FCO,FCO,03/11/2020,10950862,"26,066.72",ACCOMMODATION PROVIDER,Rental Payments - residential
FCO,FCO,19/11/2020,10971899,"26,066.72",ACCOMMODATION PROVIDER,Rental Payments - residential
FCO,FCO,24/11/2020,10978219,"25,981.38",HEALTH AUTHORITY OF ANGUILLA,Programme Spend (Oracle Projects Control Account)
FCO,FCO,11/11/2020,10961173,"25,657.71",SPARKLEAN SERVICES NIG LTD,Grounds Maintenance
FCO,FCO,09/11/2020,10957258,"25,607.06",SENATOR INTERNATIONAL LTD,Repair and maintenance of furniture and fittings
FCO,FCO,27/11/2020,10983150,"25,562.79",G4S SECURITY SERIVICES GHANA LTD,Local Guards
FCO,FCO,20/11/2020,10973195,"25,551.94",GILBERT ASH LIMITED,Unscheduled repairs to building infrastructure
FCO,FCO,27/11/2020,10982219,"25,535.55",DMS AFRICA,Property Maintenance Overseas Residential
FCO,FCO,04/11/2020,10952025,"25,463.21",AETNA,Multiple Accounts
FCO,FCO,04/11/2020,10951857,"25,412.50",RAMBOLL UK LTD,Additions-Assets Under Construction (Oracle PA Control Account)
FCO,FCO,19/11/2020,10971587,"25,395.62",ONE HUNDRED TOWERS,Multiple Accounts
FCO,FCO,23/11/2020,10976175,"25,319.70",BILIA EMOND,Additions-Assets Under Construction (Oracle PA Control Account)
FCO,FCO,24/11/2020,10978277,"25,273.19",KPMG FIDUCIAIRE,Multiple Accounts
FCO,FCO,20/11/2020,10973123,"25,266.93",FCDO SERVICES,IT Networking
FCO,FCO,03/11/2020,10950173,"25,200.00",UNDP CONTRIBUTIONS,Programme Spend (Oracle Projects Control Account)
FCO,FCO,23/11/2020,10975987,"25,187.12",IESCO,Multiple Accounts
FCO,FCO,10/11/2020,10959517,"25,155.36",BAE SYSTEMS APPLIED INTELLIGENCE LIMITED,IT Management and Change
FCO,FCO,16/11/2020,10966045,"-29,493.59",SCHOOL,Schooling for Children at Post
FCO,FCO,16/11/2020,10966047,"-29,493.59",SCHOOL,Schooling for Children at Post
FCO,FCO,16/11/2020,10966050,"-29,493.59",SCHOOL,Schooling for Children at Post
FCO,FCO,01/11/2020,10939440,"-32,319.60",UNDP CONTRIBUTIONS,Programme Spend (Oracle Projects Control Account)
FCO,FCO,27/11/2020,10982275,"-34,254.49",FCDO SERVICES,Air Freight Dip Bags - Freight & Clearance Charges
FCO,FCO,09/11/2020,10957568,"-35,000.00",MOD MINISTRY OF DEFENCE,Programme Spend (Oracle Projects Control Account)
FCO,FCO,01/11/2020,10946464,"-36,650.00",ROYAL UNITED SERVICES INSTITUTE FOR DEFENCE AND SECURITY STUDIES,Programme Spend (Oracle Projects Control Account)
FCO,FCO,24/11/2020,10978064,"-38,857.73",ORGANIZATION FOR SECURITY AND CO-OPERATION IN EUROPE,Programme Spend (Oracle Projects Control Account)
FCO,FCO,18/11/2020,10970007,"-39,868.25",BAE SYSTEMS APPLIED INTELLIGENCE LIMITED,IT Management and Change
FCO,FCO,01/11/2020,10942448,"-46,894.56",ASR LEVENSVERZEKERING NV,Local Staff Pension Contributions
FCO,FCO,17/11/2020,10967595,"-50,740.00",RAMBOLL UK LTD,Residential Property Services
FCO,FCO,24/11/2020,10978243,"-62,688.33",MRI SOFTWARE LTD,IT Management and Change
FCO,FCO,03/11/2020,10950502,"-95,300.00",CABINET OFFICE,Training Courses
FCO,FCO,01/11/2020,10940871,"-103,890.60",PEARL PLAZA REAL ESTATE MANAGEMENT LLC,Rental Payments - non residential
FCO,FCO,20/11/2020,10973374,"-115,977.54",BAE SYSTEMS APPLIED INTELLIGENCE LIMITED,IT Management and Change
FCO,FCO,01/11/2020,10939537,"-186,291.32",INTELLICARE,Multiple Accounts
FCO,FCO,01/11/2020,10947823,"-319,328.51",INFLECTOR ENVIRONMENTAL SERVICES,Additions-Assets Under Construction (Oracle PA Control Account)
FCO,FCO,01/11/2020,10942429,"-500,000.00",THE WORLD BANK,Programme Spend (Oracle Projects Control Account)
FCO,FCO,18/11/2020,10970436,"-698,215.67",PEL OTHER DEBTORS,Proceeds from Assets held for sale
